Publisher Label,Publisher URI,"Supplier ID","Supplier","Invoice No.","Amount (£)","Purpose","Transaction Number","Payment Date","Organisational Unit","Cost Centre(T)","Internal Category Number"
"Wolverhampton City Council","http://opendatacommunities.org/id/metropolitan-district-council/wolverhampton","707511","St Columba�S Church Day Centre","20/52 1720170823","41.86","TPP - Day Care","190367501","25/08/2017","Older People Care Purchasing","OP Care Purchasing (Spot Placements)","R5430"
"Wolverhampton City Council","http://opendatacommunities.org/id/metropolitan-district-council/wolverhampton","707511","St Columba�S Church Day Centre","20/52 1720170823","41.86","TPP - Day Care","190367501","25/08/2017","Older People Care Purchasing","OP Care Purchasing (Spot Placements)","R5430"
"Wolverhampton City Council","http://opendatacommunities.org/id/metropolitan-district-council/wolverhampton","707511","St Columba�S Church Day Centre","20/52 1720170823","62.79","TPP - Day Care","190367501","25/08/2017","Older People Care Purchasing","OP Care Purchasing (Spot Placements)","R5430"
"Wolverhampton City Council","http://opendatacommunities.org/id/metropolitan-district-council/wolverhampton","707511","St Columba�S Church Day Centre","20/52 1720170823","41.86","TPP - Day Care","190367501","25/08/2017","Older People Care Purchasing","OP Care Purchasing (Spot Placements)","R5430"
"Wolverhampton City Council","http://opendatacommunities.org/id/metropolitan-district-council/wolverhampton","707511","St Columba�S Church Day Centre","20/52 1720170823","41.86","TPP - Day Care","190367501","25/08/2017","Older People Care Purchasing","OP Care Purchasing (Spot Placements)","R5430"
"Wolverhampton City Council","http://opendatacommunities.org/id/metropolitan-district-council/wolverhampton","707511","St Columba�S Church Day Centre","20/52 1720170823","20.93","TPP - Day Care","190367501","25/08/2017","Older People Care Purchasing","OP Care Purchasing (Spot Placements)","R5430"
"Wolverhampton City Council","http://opendatacommunities.org/id/metropolitan-district-council/wolverhampton","707511","St Columba�S Church Day Centre","20/52 1720170823","20.93","TPP - Day Care","190367501","25/08/2017","Older People Care Purchasing","OP Care Purchasing (Spot Placements)","R5430"
"Wolverhampton City Council","http://opendatacommunities.org/id/metropolitan-district-council/wolverhampton","707511","St Columba�S Church Day Centre","20/52 1720170823","62.79","TPP - Day Care","190367501","25/08/2017","Older People Care Purchasing","OP Care Purchasing (Spot Placements)","R5430"
"Wolverhampton City Council","http://opendatacommunities.org/id/metropolitan-district-council/wolverhampton","707511","St Columba�S Church Day Centre","20/52 1720170823","20.93","TPP - Day Care","190367501","25/08/2017","Older People Care Purchasing","OP Care Purchasing (Spot Placements)","R5430"
"Wolverhampton City Council","http://opendatacommunities.org/id/metropolitan-district-council/wolverhampton","707511","St Columba�S Church Day Centre","20/52 1720170823","41.86","TPP - Day Care","190367501","25/08/2017","Older People Care Purchasing","OP Care Purchasing (Spot Placements)","R5430"
"Wolverhampton City Council","http://opendatacommunities.org/id/metropolitan-district-council/wolverhampton","707511","St Columba�S Church Day Centre","20/52 1720170823","20.93","TPP - Day Care","190367501","25/08/2017","Older People Care Purchasing","OP Care Purchasing (Spot Placements)","R5430"
"Wolverhampton City Council","http://opendatacommunities.org/id/metropolitan-district-council/wolverhampton","707511","St Columba�S Church Day Centre","20/52 1720170823","20.93","TPP - Day Care","190367501","25/08/2017","Older People Care Purchasing","OP Care Purchasing (Spot Placements)","R5430"
"Wolverhampton City Council","http://opendatacommunities.org/id/metropolitan-district-council/wolverhampton","707517","St George�S Veterinary Group","WCC2017","1,376.82","Services - Professional Fees","130185263","18/08/2017","Public Protection","Pest Control & Animal Welfare","R4400"
"Wolverhampton City Council","http://opendatacommunities.org/id/metropolitan-district-council/wolverhampton","707517","St George�S Veterinary Group","WCC2017 07","900.00","Services - Professional Fees","130185264","18/08/2017","Public Protection","Pest Control & Animal Welfare","R4400"
"Wolverhampton City Council","http://opendatacommunities.org/id/metropolitan-district-council/wolverhampton","707527","St Martins Church Bradley","275","35.00","Room Hire","130180455","02/08/2017","Community Safety","SWP - Locations","R2201"
"Wolverhampton City Council","http://opendatacommunities.org/id/metropolitan-district-council/wolverhampton","707533","St Matthews Church","170718","25.00","Room Hire","130181544","04/08/2017","Community Safety","SWP - Locations","R2201"
"Wolverhampton City Council","http://opendatacommunities.org/id/metropolitan-district-council/wolverhampton","707541","St Peters Collegiate Church W-ton","702","36.30","Books","130185265","18/08/2017","Visitor Economy","Archives","R4309"
"Wolverhampton City Council","http://opendatacommunities.org/id/metropolitan-district-council/wolverhampton","707564","Staffordshire County Council","8004151215","2,044.16","Client Transport - SEN","130186215","30/08/2017","School Planning & Resources","Special - Transport","R3043"
"Wolverhampton City Council","http://opendatacommunities.org/id/metropolitan-district-council/wolverhampton","707564","Staffordshire County Council","8004151219","5,832.96","Client Transport - SEN","130186216","30/08/2017","School Planning & Resources","Special - Transport","R3043"
"Wolverhampton City Council","http://opendatacommunities.org/id/metropolitan-district-council/wolverhampton","707564","Staffordshire County Council","8305006964","-238.50","Services - Professional Fees","130186221","30/08/2017","Highways Maintenance","Winter Maintenance","R4400"
"Wolverhampton City Council","http://opendatacommunities.org/id/metropolitan-district-council/wolverhampton","707564","Staffordshire County Council","8004151223","3,209.12","Client Transport - SEN","130186219","30/08/2017","School Planning & Resources","Special - Transport","R3043"
"Wolverhampton City Council","http://opendatacommunities.org/id/metropolitan-district-council/wolverhampton","707564","Staffordshire County Council","8004151222","4,281.60","Client Transport - SEN","130186218","30/08/2017","School Planning & Resources","Special - Transport","R3043"
"Wolverhampton City Council","http://opendatacommunities.org/id/metropolitan-district-council/wolverhampton","707564","Staffordshire County Council","8004161214","6,585.60","Client Transport - SEN","130186220","30/08/2017","School Planning & Resources","Special - Transport","R3043"
"Wolverhampton City Council","http://opendatacommunities.org/id/metropolitan-district-council/wolverhampton","707564","Staffordshire County Council","8004151213","5,241.60","Client Transport - SEN","130186214","30/08/2017","School Planning & Resources","Special - Transport","R3043"
"Wolverhampton City Council","http://opendatacommunities.org/id/metropolitan-district-council/wolverhampton","707564","Staffordshire County Council","8004151220","4,635.52","Client Transport - SEN","130186217","30/08/2017","School Planning & Resources","Special - Transport","R3043"
"Wolverhampton City Council","http://opendatacommunities.org/id/metropolitan-district-council/wolverhampton","707580","Stannah Lifts Limited","17/0108/SAG","664.00","Grants paid out","190365827","18/08/2017","-","Disabled Facilities Grants","C5000"
"Wolverhampton City Council","http://opendatacommunities.org/id/metropolitan-district-council/wolverhampton","707580","Stannah Lifts Limited","17/0079/SAG","3,077.40","Grants paid out","190367183","23/08/2017","-","Disabled Facilities Grants","C5000"
"Wolverhampton City Council","http://opendatacommunities.org/id/metropolitan-district-council/wolverhampton","707580","Stannah Lifts Limited","17/0084/SAG","2,570.00","Grants paid out","190362950","04/08/2017","-","Disabled Facilities Grants","C5000"
"Wolverhampton City Council","http://opendatacommunities.org/id/metropolitan-district-council/wolverhampton","707580","Stannah Lifts Limited","16/0877/SAG","5,042.00","Grants paid out","190367184","23/08/2017","-","Disabled Facilities Grants","C5000"
"Wolverhampton City Council","http://opendatacommunities.org/id/metropolitan-district-council/wolverhampton","707580","Stannah Lifts Limited","17/0113/SAG","5,071.00","Grants paid out","190365829","18/08/2017","-","Disabled Facilities Grants","C5000"
"Wolverhampton City Council","http://opendatacommunities.org/id/metropolitan-district-council/wolverhampton","707580","Stannah Lifts Limited","16/0693/SAG","6,401.00","Grants paid out","190365825","18/08/2017","-","Disabled Facilities Grants","C5000"
"Wolverhampton City Council","http://opendatacommunities.org/id/metropolitan-district-council/wolverhampton","707580","Stannah Lifts Limited","16/0876/SAG","3,241.00","Grants paid out","190367178","23/08/2017","-","Disabled Facilities Grants","C5000"
"Wolverhampton City Council","http://opendatacommunities.org/id/metropolitan-district-council/wolverhampton","707580","Stannah Lifts Limited","16/0869/SAG","2,665.00","Grants paid out","190362700","02/08/2017","-","Disabled Facilities Grants","C5000"
"Wolverhampton City Council","http://opendatacommunities.org/id/metropolitan-district-council/wolverhampton","707580","Stannah Lifts Limited","16/0866/SAG","5,493.00","Grants paid out","190368165","25/08/2017","-","Disabled Facilities Grants","C5000"
"Wolverhampton City Council","http://opendatacommunities.org/id/metropolitan-district-council/wolverhampton","707580","Stannah Lifts Limited","17/0160/SAG","125.00","Grants paid out","190367179","23/08/2017","-","Disabled Facilities Grants","C5000"
"Wolverhampton City Council","http://opendatacommunities.org/id/metropolitan-district-council/wolverhampton","707581","Stannah Limited/Stannah Lift Services","S085068963","1,893.00","Construction and Conversion","130182986","23/08/2017","-","Adaptations for People with Disabilites","C1100"
"Wolverhampton City Council","http://opendatacommunities.org/id/metropolitan-district-council/wolverhampton","707581","Stannah Limited/Stannah Lift Services","S085068634","100.00","Construction and Conversion","130183089","18/08/2017","-","Adaptations for People with Disabilites","C1100"
"Wolverhampton City Council","http://opendatacommunities.org/id/metropolitan-district-council/wolverhampton","707581","Stannah Limited/Stannah Lift Services","s085067446","937.00","Construction and Conversion","130179878","02/08/2017","-","Adaptations for People with Disabilites","C1100"
"Wolverhampton City Council","http://opendatacommunities.org/id/metropolitan-district-council/wolverhampton","707581","Stannah Limited/Stannah Lift Services","S085069424","4,582.00","Construction and Conversion","130183646","30/08/2017","-","Adaptations for People with Disabilites","C1100"
"Wolverhampton City Council","http://opendatacommunities.org/id/metropolitan-district-council/wolverhampton","707581","Stannah Limited/Stannah Lift Services","S085068313","2,515.00","Construction and Conversion","130184190","16/08/2017","-","Adaptations for People with Disabilites","C1100"
"Wolverhampton City Council","http://opendatacommunities.org/id/metropolitan-district-council/wolverhampton","707581","Stannah Limited/Stannah Lift Services","s085067291","50.00","Construction and Conversion","130178972","02/08/2017","-","Adaptations for People with Disabilites","C1100"
"Wolverhampton City Council","http://opendatacommunities.org/id/metropolitan-district-council/wolverhampton","707581","Stannah Limited/Stannah Lift Services","S085069027","100.00","Construction and Conversion","130182987","23/08/2017","-","Adaptations for People with Disabilites","C1100"
"Wolverhampton City Council","http://opendatacommunities.org/id/metropolitan-district-council/wolverhampton","707581","Stannah Limited/Stannah Lift Services","S085068625","3,471.00","Construction and Conversion","130182985","23/08/2017","-","Adaptations for People with Disabilites","C1100"
"Wolverhampton City Council","http://opendatacommunities.org/id/metropolitan-district-council/wolverhampton","707581","Stannah Limited/Stannah Lift Services","s085067441","615.00","Construction and Conversion","130181059","02/08/2017","-","Adaptations for People with Disabilites","C1100"
"Wolverhampton City Council","http://opendatacommunities.org/id/metropolitan-district-council/wolverhampton","707581","Stannah Limited/Stannah Lift Services","s085065801","2,708.00","Construction and Conversion","130177665","30/08/2017","-","Adaptations for People with Disabilites","C1100"
"Wolverhampton City Council","http://opendatacommunities.org/id/metropolitan-district-council/wolverhampton","707581","Stannah Limited/Stannah Lift Services","S085068322","50.00","Construction and Conversion","130182984","16/08/2017","-","Adaptations for People with Disabilites","C1100"
"Wolverhampton City Council","http://opendatacommunities.org/id/metropolitan-district-council/wolverhampton","707581","Stannah Limited/Stannah Lift Services","s085067612","50.00","Construction and Conversion","130179622","02/08/2017","-","Adaptations for People with Disabilites","C1100"
"Wolverhampton City Council","http://opendatacommunities.org/id/metropolitan-district-council/wolverhampton","707581","Stannah Limited/Stannah Lift Services","S085046369","4,565.00","Construction and Conversion","130162630","25/08/2017","-","Adaptations for People with Disabilites","C1100"
"Wolverhampton City Council","http://opendatacommunities.org/id/metropolitan-district-council/wolverhampton","707581","Stannah Limited/Stannah Lift Services","S085068964","100.00","Construction and Conversion","130182258","23/08/2017","-","Disabled Facilities Grants","C1100"
"Wolverhampton City Council","http://opendatacommunities.org/id/metropolitan-district-council/wolverhampton","707581","Stannah Limited/Stannah Lift Services","s085067298","100.00","Construction and Conversion","130178973","02/08/2017","-","Adaptations for People with Disabilites","C1100"
"Wolverhampton City Council","http://opendatacommunities.org/id/metropolitan-district-council/wolverhampton","707581","Stannah Limited/Stannah Lift Services","S085069265","2,469.00","Construction and Conversion","130183090","30/08/2017","-","Adaptations for People with Disabilites","C1100"
"Wolverhampton City Council","http://opendatacommunities.org/id/metropolitan-district-council/wolverhampton","707625","Stone Hardy Limited","1203493","44.83","Equipment - Purchase","190368280","30/08/2017","Fleet Services","Fleet Management","R4000"
"Wolverhampton City Council","http://opendatacommunities.org/id/metropolitan-district-council/wolverhampton","707627","Stoneleigh Consultancy Limited","45901","12,608.67","Computing - Purchase of Software","130180919","09/08/2017","ICTS","Strategic ICTS (ICT Service Budget)","R4531"
"Wolverhampton City Council","http://opendatacommunities.org/id/metropolitan-district-council/wolverhampton","707627","Stoneleigh Consultancy Limited","45914","480.97","Computing - Purchase of Hardware","130181424","16/08/2017","Early Intervention","EIP Locality 6 � Dovecotes","R4530"
"Wolverhampton City Council","http://opendatacommunities.org/id/metropolitan-district-council/wolverhampton","707627","Stoneleigh Consultancy Limited","45897","85.30","Computing - Purchase of Hardware","130180918","09/08/2017","ICTS","Strategic ICTS (ICT Service Budget)","R4530"
"Wolverhampton City Council","http://opendatacommunities.org/id/metropolitan-district-council/wolverhampton","707627","Stoneleigh Consultancy Limited","45956","6,920.08","Plant, Equipment, Machinery & Computer Hardware","130182988","30/08/2017","-","ICT General Programme","C3000"
"Wolverhampton City Council","http://opendatacommunities.org/id/metropolitan-district-council/wolverhampton","707644","Streetmaster (South Wales)Limited","4397","102.00","Materials for resale","130181425","09/08/2017","Bereavement Services","Cemeteries","R4008"
"Wolverhampton City Council","http://opendatacommunities.org/id/metropolitan-district-council/wolverhampton","707644","Streetmaster (South Wales)Limited","4405","548.00","Materials for resale","130183279","11/08/2017","Bereavement Services","Cemeteries","R4008"
"Wolverhampton City Council","http://opendatacommunities.org/id/metropolitan-district-council/wolverhampton","707644","Streetmaster (South Wales)Limited","4405","74.00","Materials for resale","130183279","11/08/2017","Bereavement Services","Cemeteries","R4008"
"Wolverhampton City Council","http://opendatacommunities.org/id/metropolitan-district-council/wolverhampton","707644","Streetmaster (South Wales)Limited","4328","595.00","Materials for resale","130178741","09/08/2017","Bereavement Services","Cemeteries","R4008"
"Wolverhampton City Council","http://opendatacommunities.org/id/metropolitan-district-council/wolverhampton","707644","Streetmaster (South Wales)Limited","4329","595.00","Materials for resale","130178070","09/08/2017","Bereavement Services","Cemeteries","R4008"
"Wolverhampton City Council","http://opendatacommunities.org/id/metropolitan-district-council/wolverhampton","707685","Sunnyside Kennels","SS 949","1,617.33","Services - Professional Fees","130181060","09/08/2017","Public Protection","Pest Control & Animal Welfare","R4400"
"Wolverhampton City Council","http://opendatacommunities.org/id/metropolitan-district-council/wolverhampton","707686","Sunrise Medical Limited","18UI001877","84.00","Equipment - Purchase","130180059","02/08/2017","Independent Living Service","Independent Living Service","R4000"
"Wolverhampton City Council","http://opendatacommunities.org/id/metropolitan-district-council/wolverhampton","707686","Sunrise Medical Limited","18UI003745","280.00","Equipment - Purchase","130180920","09/08/2017","Independent Living Service","Independent Living Service","R4000"
"Wolverhampton City Council","http://opendatacommunities.org/id/metropolitan-district-council/wolverhampton","707686","Sunrise Medical Limited","18UI004662","840.00","Equipment - Purchase","130181426","16/08/2017","Independent Living Service","Independent Living Service","R4000"
"Wolverhampton City Council","http://opendatacommunities.org/id/metropolitan-district-council/wolverhampton","707686","Sunrise Medical Limited","18UI003998","385.00","Equipment - Purchase","130181061","09/08/2017","Independent Living Service","Independent Living Service","R4000"
"Wolverhampton City Council","http://opendatacommunities.org/id/metropolitan-district-council/wolverhampton","707686","Sunrise Medical Limited","18UI007564","228.00","Equipment - Purchase","130182768","23/08/2017","Independent Living Service","Independent Living Service","R4000"
"Wolverhampton City Council","http://opendatacommunities.org/id/metropolitan-district-council/wolverhampton","707686","Sunrise Medical Limited","18UI007564","230.00","Equipment - Purchase","130182768","23/08/2017","Independent Living Service","Independent Living Service","R4000"
"Wolverhampton City Council","http://opendatacommunities.org/id/metropolitan-district-council/wolverhampton","707686","Sunrise Medical Limited","18UI004991","400.00","Equipment - Purchase","130181545","16/08/2017","Independent Living Service","Independent Living Service","R4000"
"Wolverhampton City Council","http://opendatacommunities.org/id/metropolitan-district-council/wolverhampton","707722","Swift Maintnce Services (1973) Limited","22614","-82.42","Equipment - R & M","130180921","23/08/2017","Leisure Services","WV Active Catering - Central","R4003"
"Wolverhampton City Council","http://opendatacommunities.org/id/metropolitan-district-council/wolverhampton","707722","Swift Maintnce Services (1973) Limited","22863","552.60","Equipment - Catering","130183282","09/08/2017","Catering","Education Catering - General Overheads","R4010"
"Wolverhampton City Council","http://opendatacommunities.org/id/metropolitan-district-council/wolverhampton","707722","Swift Maintnce Services (1973) Limited","22277","175.75","Equipment - Catering","130174694","11/08/2017","Maintenance Programme","Civic Centre Repairs & Maintenance","R4010"
"Wolverhampton City Council","http://opendatacommunities.org/id/metropolitan-district-council/wolverhampton","707722","Swift Maintnce Services (1973) Limited","22871","79.00","Equipment - R & M","130183283","09/08/2017","Leisure Services","WV Active Catering","R4003"
"Wolverhampton City Council","http://opendatacommunities.org/id/metropolitan-district-council/wolverhampton","707722","Swift Maintnce Services (1973) Limited","21978","82.42","Equipment - R & M","130170800","23/08/2017","Leisure Services","WV Active Catering - Central","R4003"
"Wolverhampton City Council","http://opendatacommunities.org/id/metropolitan-district-council/wolverhampton","707722","Swift Maintnce Services (1973) Limited","22945","167.81","Equipment - R & M","130184924","23/08/2017","Learning Disability Provider","Ernest Bold Court","R4003"
"Wolverhampton City Council","http://opendatacommunities.org/id/metropolitan-district-council/wolverhampton","707722","Swift Maintnce Services (1973) Limited","22973","805.84","Equipment - R & M","130185046","23/08/2017","Leisure Services","WV Active Catering - Central","R4003"
"Wolverhampton City Council","http://opendatacommunities.org/id/metropolitan-district-council/wolverhampton","707722","Swift Maintnce Services (1973) Limited","22862","346.42","R&M - Departmental planned (external)","130183281","09/08/2017","Bereavement Services","Coroners","R2001"
"Wolverhampton City Council","http://opendatacommunities.org/id/metropolitan-district-council/wolverhampton","707722","Swift Maintnce Services (1973) Limited","22872","111.13","Equipment - Catering","130183284","09/08/2017","Visitor Economy","Bantock - Tea Rooms","R4010"
"Wolverhampton City Council","http://opendatacommunities.org/id/metropolitan-district-council/wolverhampton","707722","Swift Maintnce Services (1973) Limited","16410","194.04","Equipment - Catering","130101889","23/08/2017","Strategic Organisation Development","Blakenhall Community & Healthy Living Centre","R4010"
"Wolverhampton City Council","http://opendatacommunities.org/id/metropolitan-district-council/wolverhampton","707741","Systems Engineering & Assessment Limited","SIN029813","680.00","Equipment - R & M","130180260","04/08/2017","Parking Services","Parking Enforcement","R4003"
"Wolverhampton City Council","http://opendatacommunities.org/id/metropolitan-district-council/wolverhampton","707751","T H White Limited","E79290","53.03","Equipment - Purchase","190363025","04/08/2017","Fleet Services","Fleet Management","R4000"
"Wolverhampton City Council","http://opendatacommunities.org/id/metropolitan-district-council/wolverhampton","707751","T H White Limited","E79748","145.57","Equipment - Purchase","190365894","18/08/2017","Fleet Services","Fleet Management","R4000"
"Wolverhampton City Council","http://opendatacommunities.org/id/metropolitan-district-council/wolverhampton","707751","T H White Limited","E79748","72.79","Equipment - Purchase","190365894","18/08/2017","Fleet Services","Fleet Management","R4000"
"Wolverhampton City Council","http://opendatacommunities.org/id/metropolitan-district-council/wolverhampton","707751","T H White Limited","E79774.1","234.23","Equipment - Purchase","190368851","30/08/2017","Fleet Services","Fleet Management","R4000"
"Wolverhampton City Council","http://opendatacommunities.org/id/metropolitan-district-council/wolverhampton","707751","T H White Limited","E79774.1","10.20","Equipment - Purchase","190368851","30/08/2017","Fleet Services","Fleet Management","R4000"
"Wolverhampton City Council","http://opendatacommunities.org/id/metropolitan-district-council/wolverhampton","707751","T H White Limited","E79774.1","212.98","Equipment - Purchase","190368851","30/08/2017","Fleet Services","Fleet Management","R4000"
"Wolverhampton City Council","http://opendatacommunities.org/id/metropolitan-district-council/wolverhampton","707751","T H White Limited","E79774.1","20.22","Equipment - Purchase","190368851","30/08/2017","Fleet Services","Fleet Management","R4000"
"Wolverhampton City Council","http://opendatacommunities.org/id/metropolitan-district-council/wolverhampton","707751","T H White Limited","E79774.1","324.19","Equipment - Purchase","190368851","30/08/2017","Fleet Services","Fleet Management","R4000"
"Wolverhampton City Council","http://opendatacommunities.org/id/metropolitan-district-council/wolverhampton","707751","T H White Limited","E79747","54.09","Equipment - Purchase","190368850","30/08/2017","Fleet Services","Fleet Management","R4000"
"Wolverhampton City Council","http://opendatacommunities.org/id/metropolitan-district-council/wolverhampton","707751","T H White Limited","E79747","10.62","Equipment - Purchase","190368850","30/08/2017","Fleet Services","Fleet Management","R4000"
"Wolverhampton City Council","http://opendatacommunities.org/id/metropolitan-district-council/wolverhampton","707751","T H White Limited","E79747","55.78","Equipment - Purchase","190368850","30/08/2017","Fleet Services","Fleet Management","R4000"
"Wolverhampton City Council","http://opendatacommunities.org/id/metropolitan-district-council/wolverhampton","707751","T H White Limited","E79747","41.44","Equipment - Purchase","190368850","30/08/2017","Fleet Services","Fleet Management","R4000"
"Wolverhampton City Council","http://opendatacommunities.org/id/metropolitan-district-council/wolverhampton","707751","T H White Limited","E79747","54.41","Equipment - Purchase","190368850","30/08/2017","Fleet Services","Fleet Management","R4000"
"Wolverhampton City Council","http://opendatacommunities.org/id/metropolitan-district-council/wolverhampton","707751","T H White Limited","653468","26.05","Equipment - Purchase","190363001","04/08/2017","Fleet Services","Fleet Management","R4000"
"Wolverhampton City Council","http://opendatacommunities.org/id/metropolitan-district-council/wolverhampton","707751","T H White Limited","653468","59.65","Equipment - Purchase","190363001","04/08/2017","Fleet Services","Fleet Management","R4000"
"Wolverhampton City Council","http://opendatacommunities.org/id/metropolitan-district-council/wolverhampton","707751","T H White Limited","E79716","23.28","Equipment - Purchase","190365893","18/08/2017","Fleet Services","Fleet Management","R4000"
"Wolverhampton City Council","http://opendatacommunities.org/id/metropolitan-district-council/wolverhampton","707751","T H White Limited","E79716","66.26","Equipment - Purchase","190365893","18/08/2017","Fleet Services","Fleet Management","R4000"
"Wolverhampton City Council","http://opendatacommunities.org/id/metropolitan-district-council/wolverhampton","707751","T H White Limited","E79777","143.04","Equipment - Purchase","190368852","30/08/2017","Fleet Services","Fleet Management","R4000"
"Wolverhampton City Council","http://opendatacommunities.org/id/metropolitan-district-council/wolverhampton","707751","T H White Limited","E79332","0.61","Equipment - Purchase","190363026","04/08/2017","Fleet Services","Fleet Management","R4000"
"Wolverhampton City Council","http://opendatacommunities.org/id/metropolitan-district-council/wolverhampton","707751","T H White Limited","E79332","0.46","Equipment - Purchase","190363026","04/08/2017","Fleet Services","Fleet Management","R4000"
"Wolverhampton City Council","http://opendatacommunities.org/id/metropolitan-district-council/wolverhampton","707751","T H White Limited","E79332","1.80","Equipment - Purchase","190363026","04/08/2017","Fleet Services","Fleet Management","R4000"
"Wolverhampton City Council","http://opendatacommunities.org/id/metropolitan-district-council/wolverhampton","707751","T H White Limited","E79332","19.00","Equipment - Purchase","190363026","04/08/2017","Fleet Services","Fleet Management","R4000"
"Wolverhampton City Council","http://opendatacommunities.org/id/metropolitan-district-council/wolverhampton","707775","Tameside M.B.C.","61387830","1,000.00","Subscriptions","130184692","16/08/2017","Audit Services","Audit Services","R4701"
"Wolverhampton City Council","http://opendatacommunities.org/id/metropolitan-district-council/wolverhampton","707837","Telent:Ttsl Traffic Signals/Technology UK","1105008","611.39","TPP - Maintenance Contractor - General","130181932","16/08/2017","Operation & Maintenance of Existing Network","UTC Wolverhampton","R5720"
"Wolverhampton City Council","http://opendatacommunities.org/id/metropolitan-district-council/wolverhampton","707837","Telent:Ttsl Traffic Signals/Technology UK","1104836","3,696.43","TPP - Rechargeable Works Costs","130180066","02/08/2017","Operation & Maintenance of Existing Network","UTC only � External Rechargeable Works","R5730"
"Wolverhampton City Council","http://opendatacommunities.org/id/metropolitan-district-council/wolverhampton","707837","Telent:Ttsl Traffic Signals/Technology UK","1102495","1,075.22","TPP - Maintenance Contractor - General","130185606","23/08/2017","Operation & Maintenance of Existing Network","Traffic Signals","R5720"
"Wolverhampton City Council","http://opendatacommunities.org/id/metropolitan-district-council/wolverhampton","707837","Telent:Ttsl Traffic Signals/Technology UK","1105007","367.69","TPP - Maintenance Contractor - General","130181931","16/08/2017","Operation & Maintenance of Existing Network","Walsall Recovery Costs","R5720"
"Wolverhampton City Council","http://opendatacommunities.org/id/metropolitan-district-council/wolverhampton","707837","Telent:Ttsl Traffic Signals/Technology UK","1105024","134.68","TPP - Maintenance Contractor - General","130181933","16/08/2017","Operation & Maintenance of Existing Network","UTC Wolverhampton","R5720"
"Wolverhampton City Council","http://opendatacommunities.org/id/metropolitan-district-council/wolverhampton","707837","Telent:Ttsl Traffic Signals/Technology UK","1104834","1,448.95","TPP - Rechargeable Works Costs","130180064","02/08/2017","Operation & Maintenance of Existing Network","UTC only � External Rechargeable Works","R5730"
"Wolverhampton City Council","http://opendatacommunities.org/id/metropolitan-district-council/wolverhampton","707837","Telent:Ttsl Traffic Signals/Technology UK","1104833","4,462.51","Construction and Conversion","130180063","02/08/2017","-","Transport Structual Maintenance","C1100"
"Wolverhampton City Council","http://opendatacommunities.org/id/metropolitan-district-council/wolverhampton","707837","Telent:Ttsl Traffic Signals/Technology UK","1104832","1,267.96","TPP - Maintenance Contractor - General","130180062","02/08/2017","Operation & Maintenance of Existing Network","UTC Wolverhampton","R5720"
"Wolverhampton City Council","http://opendatacommunities.org/id/metropolitan-district-council/wolverhampton","707837","Telent:Ttsl Traffic Signals/Technology UK","1105270","2,129.18","TPP - Rechargeable Works Costs","130182769","23/08/2017","Operation & Maintenance of Existing Network","Walsall Recovery Costs","R5730"
"Wolverhampton City Council","http://opendatacommunities.org/id/metropolitan-district-council/wolverhampton","707837","Telent:Ttsl Traffic Signals/Technology UK","1105001","650.56","TPP - Maintenance on Principal Roads","130181547","16/08/2017","Operation & Maintenance of Existing Network","Traffic Signals","R5700"
"Wolverhampton City Council","http://opendatacommunities.org/id/metropolitan-district-council/wolverhampton","707837","Telent:Ttsl Traffic Signals/Technology UK","1105002","5,025.13","Construction and Conversion","130181548","16/08/2017","-","Transport Structual Maintenance","C1100"
"Wolverhampton City Council","http://opendatacommunities.org/id/metropolitan-district-council/wolverhampton","707837","Telent:Ttsl Traffic Signals/Technology UK","1105000","1,016.35","Construction and Conversion","130181546","16/08/2017","-","GF - Accessing Growth Fund","C1100"
"Wolverhampton City Council","http://opendatacommunities.org/id/metropolitan-district-council/wolverhampton","707837","Telent:Ttsl Traffic Signals/Technology UK","1104893","4,564.27","TPP - Rechargeable Works Costs","130181930","09/08/2017","Operation & Maintenance of Existing Network","UTC only � External Rechargeable Works","R5730"
"Wolverhampton City Council","http://opendatacommunities.org/id/metropolitan-district-council/wolverhampton","707837","Telent:Ttsl Traffic Signals/Technology UK","1104831","1,023.61","TPP - Maintenance Contractor - General","130180061","02/08/2017","Operation & Maintenance of Existing Network","UTC Wolverhampton","R5720"
"Wolverhampton City Council","http://opendatacommunities.org/id/metropolitan-district-council/wolverhampton","707837","Telent:Ttsl Traffic Signals/Technology UK","1104835","3,156.26","TPP - Rechargeable Works Costs","130180065","02/08/2017","Operation & Maintenance of Existing Network","UTC only � External Rechargeable Works","R5730"
"Wolverhampton City Council","http://opendatacommunities.org/id/metropolitan-district-council/wolverhampton","707840","Telewest Communications/Virgin Media","044898101/001/0717","6.03","Comms - Telephone Call charges","130180742","02/08/2017","Housing Revenue Account - Communities","Carelink","R4505"
"Wolverhampton City Council","http://opendatacommunities.org/id/metropolitan-district-council/wolverhampton","707840","Telewest Communications/Virgin Media","039003702/001/0217","6.05","Comms - Telephone Rental","130167657","25/08/2017","ICTS","Strategic ICTS (ICT Service Budget)","R4504"
"Wolverhampton City Council","http://opendatacommunities.org/id/metropolitan-district-council/wolverhampton","707840","Telewest Communications/Virgin Media","804157-185","5.36","Comms - Telephone Rental","130168189","25/08/2017","ICTS","Strategic ICTS (ICT Service Budget)","R4504"
"Wolverhampton City Council","http://opendatacommunities.org/id/metropolitan-district-council/wolverhampton","707840","Telewest Communications/Virgin Media","046927101/001/0417","7.50","Comms - Telephone Rental","130168463","25/08/2017","ICTS","Strategic ICTS (ICT Service Budget)","R4504"
"Wolverhampton City Council","http://opendatacommunities.org/id/metropolitan-district-council/wolverhampton","707840","Telewest Communications/Virgin Media","046927101/001/0317","7.50","Comms - Telephone Rental","130168185","25/08/2017","ICTS","Strategic ICTS (ICT Service Budget)","R4504"
"Wolverhampton City Council","http://opendatacommunities.org/id/metropolitan-district-council/wolverhampton","707840","Telewest Communications/Virgin Media","039186401/003/0517","6.00","Comms - Telephone Rental","130172908","25/08/2017","ICTS","Strategic ICTS (ICT Service Budget)","R4504"
"Wolverhampton City Council","http://opendatacommunities.org/id/metropolitan-district-council/wolverhampton","707840","Telewest Communications/Virgin Media","039186401/002/0517","52.31","Comms - Telephone Rental","130172907","25/08/2017","ICTS","Strategic ICTS (ICT Service Budget)","R4504"
"Wolverhampton City Council","http://opendatacommunities.org/id/metropolitan-district-council/wolverhampton","707840","Telewest Communications/Virgin Media","804156 - 188","21.08","Comms - Telephone Rental","130176056","25/08/2017","ICTS","Strategic ICTS (ICT Service Budget)","R4504"
"Wolverhampton City Council","http://opendatacommunities.org/id/metropolitan-district-council/wolverhampton","707840","Telewest Communications/Virgin Media","046213201/001/0717","10.99","Comms - Telephone Call charges","130185893","30/08/2017","Independent Living Service","Telecare","R4505"
"Wolverhampton City Council","http://opendatacommunities.org/id/metropolitan-district-council/wolverhampton","707840","Telewest Communications/Virgin Media","039811201/001/0717","61.45","Computing - Internet","130182770","16/08/2017","Adult Education","Alan Garner Centre Building","R4537"
"Wolverhampton City Council","http://opendatacommunities.org/id/metropolitan-district-council/wolverhampton","707840","Telewest Communications/Virgin Media","044904201/001/0717","6.00","Comms - Telephone Call charges","130181936","02/08/2017","Housing Revenue Account - Communities","Carelink","R4505"
"Wolverhampton City Council","http://opendatacommunities.org/id/metropolitan-district-council/wolverhampton","707840","Telewest Communications/Virgin Media","039225702/001/0217","6.00","Comms - Telephone Rental","130158472","25/08/2017","ICTS","Strategic ICTS (ICT Service Budget)","R4504"
"Wolverhampton City Council","http://opendatacommunities.org/id/metropolitan-district-council/wolverhampton","707840","Telewest Communications/Virgin Media","046927I0I/00I/I2I6","30.00","Comms - Telephone Rental","130151400","25/08/2017","ICTS","Strategic ICTS (ICT Service Budget)","R4504"
"Wolverhampton City Council","http://opendatacommunities.org/id/metropolitan-district-council/wolverhampton","707840","Telewest Communications/Virgin Media","046927I0I/00I/I2I6","7.50","Comms - Telephone Rental","130151400","25/08/2017","ICTS","Strategic ICTS (ICT Service Budget)","R4504"
"Wolverhampton City Council","http://opendatacommunities.org/id/metropolitan-district-council/wolverhampton","707840","Telewest Communications/Virgin Media","039186401/002/0317","52.98","Comms - Telephone Rental","130168182","25/08/2017","ICTS","Strategic ICTS (ICT Service Budget)","R4504"
"Wolverhampton City Council","http://opendatacommunities.org/id/metropolitan-district-council/wolverhampton","707840","Telewest Communications/Virgin Media","039003702/001/0417","7.04","Comms - Telephone Rental","130169021","25/08/2017","ICTS","Strategic ICTS (ICT Service Budget)","R4504"
"Wolverhampton City Council","http://opendatacommunities.org/id/metropolitan-district-council/wolverhampton","707840","Telewest Communications/Virgin Media","804156 - 186","14.52","Comms - Telephone Rental","130168186","25/08/2017","ICTS","Strategic ICTS (ICT Service Budget)","R4504"
"Wolverhampton City Council","http://opendatacommunities.org/id/metropolitan-district-council/wolverhampton","707840","Telewest Communications/Virgin Media","046927101/001/0517","7.50","Comms - Telephone Rental","130172910","25/08/2017","ICTS","Strategic ICTS (ICT Service Budget)","R4504"
"Wolverhampton City Council","http://opendatacommunities.org/id/metropolitan-district-council/wolverhampton","707840","Telewest Communications/Virgin Media","804157 188","0.32","Comms - Telephone Rental","130176057","25/08/2017","ICTS","Strategic ICTS (ICT Service Budget)","R4504"
"Wolverhampton City Council","http://opendatacommunities.org/id/metropolitan-district-council/wolverhampton","707840","Telewest Communications/Virgin Media","039360602/001/0417","40.95","Comms - Telephone Rental","130169022","09/08/2017","Looked After Children","Head of Service - LAC","R4504"
"Wolverhampton City Council","http://opendatacommunities.org/id/metropolitan-district-council/wolverhampton","707840","Telewest Communications/Virgin Media","045047301/001/0817","4.73","Comms - Telephone Call charges","130185892","30/08/2017","Independent Living Service","Telecare","R4505"
"Wolverhampton City Council","http://opendatacommunities.org/id/metropolitan-district-council/wolverhampton","707840","Telewest Communications/Virgin Media","0450473011/001/0717","6.13","Comms - Telephone Call charges","130180743","02/08/2017","Housing Revenue Account - Communities","Carelink","R4505"
"Wolverhampton City Council","http://opendatacommunities.org/id/metropolitan-district-council/wolverhampton","707840","Telewest Communications/Virgin Media","039360602/001/0217","45.55","Comms - Telephone Rental","130167658","25/08/2017","ICTS","Strategic ICTS (ICT Service Budget)","R4504"
"Wolverhampton City Council","http://opendatacommunities.org/id/metropolitan-district-council/wolverhampton","707840","Telewest Communications/Virgin Media","039360602/001/0217","30.00","Comms - Telephone Rental","130167658","25/08/2017","ICTS","Strategic ICTS (ICT Service Budget)","R4504"
"Wolverhampton City Council","http://opendatacommunities.org/id/metropolitan-district-council/wolverhampton","707840","Telewest Communications/Virgin Media","804157 - 187","3.27","Comms - Telephone Rental","130170806","25/08/2017","ICTS","Strategic ICTS (ICT Service Budget)","R4504"
"Wolverhampton City Council","http://opendatacommunities.org/id/metropolitan-district-council/wolverhampton","707840","Telewest Communications/Virgin Media","046927101/001/0217","7.50","Comms - Telephone Rental","130168184","25/08/2017","ICTS","Strategic ICTS (ICT Service Budget)","R4504"
"Wolverhampton City Council","http://opendatacommunities.org/id/metropolitan-district-council/wolverhampton","707840","Telewest Communications/Virgin Media","046927101/001/0217","30.00","Comms - Telephone Rental","130168184","25/08/2017","ICTS","Strategic ICTS (ICT Service Budget)","R4504"
"Wolverhampton City Council","http://opendatacommunities.org/id/metropolitan-district-council/wolverhampton","707840","Telewest Communications/Virgin Media","039186401/003/0317","6.00","Comms - Telephone Rental","130168183","25/08/2017","ICTS","Strategic ICTS (ICT Service Budget)","R4504"
"Wolverhampton City Council","http://opendatacommunities.org/id/metropolitan-district-council/wolverhampton","707840","Telewest Communications/Virgin Media","804156-185","22.33","Comms - Telephone Rental","130168187","25/08/2017","ICTS","Strategic ICTS (ICT Service Budget)","R4504"
"Wolverhampton City Council","http://opendatacommunities.org/id/metropolitan-district-council/wolverhampton","707840","Telewest Communications/Virgin Media","039003702/001/0617","6.48","Comms - Telephone Rental","130179218","25/08/2017","ICTS","Strategic ICTS (ICT Service Budget)","R4504"
"Wolverhampton City Council","http://opendatacommunities.org/id/metropolitan-district-council/wolverhampton","707840","Telewest Communications/Virgin Media","039003702/001/0517","7.33","Comms - Telephone Rental","130172906","25/08/2017","ICTS","Strategic ICTS (ICT Service Budget)","R4504"
"Wolverhampton City Council","http://opendatacommunities.org/id/metropolitan-district-council/wolverhampton","707840","Telewest Communications/Virgin Media","816601 - 135","35.61","Comms - Telephone Rental","130177154","25/08/2017","ICTS","Strategic ICTS (ICT Service Budget)","R4504"
"Wolverhampton City Council","http://opendatacommunities.org/id/metropolitan-district-council/wolverhampton","707840","Telewest Communications/Virgin Media","816601 - 135","62.58","Comms - Telephone Rental","130177154","25/08/2017","ICTS","Strategic ICTS (ICT Service Budget)","R4504"
"Wolverhampton City Council","http://opendatacommunities.org/id/metropolitan-district-council/wolverhampton","707840","Telewest Communications/Virgin Media","046213601/001/0817","-9.02","Comms - Telephone Call charges","130185894","30/08/2017","Independent Living Service","Telecare","R4505"
"Wolverhampton City Council","http://opendatacommunities.org/id/metropolitan-district-council/wolverhampton","707840","Telewest Communications/Virgin Media","046213601/001/0717","10.99","Comms - Telephone Call charges","130180744","02/08/2017","Housing Revenue Account - Communities","Carelink","R4505"
"Wolverhampton City Council","http://opendatacommunities.org/id/metropolitan-district-council/wolverhampton","707840","Telewest Communications/Virgin Media","039003702/001/0317","6.00","Comms - Telephone Rental","130168179","25/08/2017","ICTS","Strategic ICTS (ICT Service Budget)","R4504"
"Wolverhampton City Council","http://opendatacommunities.org/id/metropolitan-district-council/wolverhampton","707840","Telewest Communications/Virgin Media","816601 - 132","12.63","Comms - Telephone Rental","130168190","25/08/2017","ICTS","Strategic ICTS (ICT Service Budget)","R4504"
"Wolverhampton City Council","http://opendatacommunities.org/id/metropolitan-district-council/wolverhampton","707840","Telewest Communications/Virgin Media","816601 - 132","54.11","Comms - Telephone Rental","130168190","25/08/2017","ICTS","Strategic ICTS (ICT Service Budget)","R4504"
"Wolverhampton City Council","http://opendatacommunities.org/id/metropolitan-district-council/wolverhampton","707840","Telewest Communications/Virgin Media","046927101/001/0117","30.00","Comms - Telephone Rental","130154159","25/08/2017","ICTS","Strategic ICTS (ICT Service Budget)","R4504"
"Wolverhampton City Council","http://opendatacommunities.org/id/metropolitan-district-council/wolverhampton","707840","Telewest Communications/Virgin Media","046927101/001/0117","7.50","Comms - Telephone Rental","130154159","25/08/2017","ICTS","Strategic ICTS (ICT Service Budget)","R4504"
"Wolverhampton City Council","http://opendatacommunities.org/id/metropolitan-district-council/wolverhampton","707840","Telewest Communications/Virgin Media","804157 - 186","6.76","Comms - Telephone Rental","130168188","25/08/2017","ICTS","Strategic ICTS (ICT Service Budget)","R4504"
"Wolverhampton City Council","http://opendatacommunities.org/id/metropolitan-district-council/wolverhampton","707840","Telewest Communications/Virgin Media","804156 - 189","17.52","Comms - Telephone Rental","130180458","25/08/2017","ICTS","Strategic ICTS (ICT Service Budget)","R4504"
"Wolverhampton City Council","http://opendatacommunities.org/id/metropolitan-district-council/wolverhampton","707840","Telewest Communications/Virgin Media","804157 - 189","0.30","Comms - Telephone Rental","130180459","25/08/2017","ICTS","Strategic ICTS (ICT Service Budget)","R4504"
"Wolverhampton City Council","http://opendatacommunities.org/id/metropolitan-district-council/wolverhampton","707840","Telewest Communications/Virgin Media","046927101/001/0617","7.50","Comms - Telephone Rental","130176721","25/08/2017","ICTS","Strategic ICTS (ICT Service Budget)","R4504"
"Wolverhampton City Council","http://opendatacommunities.org/id/metropolitan-district-council/wolverhampton","707840","Telewest Communications/Virgin Media","044898101/001/0817","4.57","Comms - Telephone Call charges","130185890","30/08/2017","Independent Living Service","Telecare","R4505"
"Wolverhampton City Council","http://opendatacommunities.org/id/metropolitan-district-council/wolverhampton","707840","Telewest Communications/Virgin Media","039360602/001/0717","41.74","Comms - Telephone Rental","130181935","11/08/2017","Looked After Children","Head of Service - LAC","R4504"
"Wolverhampton City Council","http://opendatacommunities.org/id/metropolitan-district-council/wolverhampton","707841","Telford & Wrekin Council","4334914","976.00","Client Transport - SEN","130181551","09/08/2017","School Planning & Resources","Special - Transport","R3043"
"Wolverhampton City Council","http://opendatacommunities.org/id/metropolitan-district-council/wolverhampton","707841","Telford & Wrekin Council","4334914","-976.00","Client Transport - SEN","130181551","09/08/2017","School Planning & Resources","Special - Transport","R3043"
"Wolverhampton City Council","http://opendatacommunities.org/id/metropolitan-district-council/wolverhampton","707841","Telford & Wrekin Council","4334914","976.00","Client Transport - SEN","130181551","09/08/2017","School Planning & Resources","Special - Transport","R3043"
"Wolverhampton City Council","http://opendatacommunities.org/id/metropolitan-district-council/wolverhampton","707841","Telford & Wrekin Council","4334918","980.00","Client Transport - SEN","130181552","09/08/2017","School Planning & Resources","Special - Transport","R3043"
"Wolverhampton City Council","http://opendatacommunities.org/id/metropolitan-district-council/wolverhampton","707841","Telford & Wrekin Council","4334852","800.00","Client Transport - SEN","130181550","04/08/2017","School Planning & Resources","Special - Transport","R3043"
"Wolverhampton City Council","http://opendatacommunities.org/id/metropolitan-district-council/wolverhampton","707841","Telford & Wrekin Council","4337050","1,598.00","Client Transport - SEN","130183091","23/08/2017","School Planning & Resources","Special - Transport","R3043"
"Wolverhampton City Council","http://opendatacommunities.org/id/metropolitan-district-council/wolverhampton","707841","Telford & Wrekin Council","4334920","1,786.00","Client Transport - SEN","130181553","09/08/2017","School Planning & Resources","Special - Transport","R3043"
"Wolverhampton City Council","http://opendatacommunities.org/id/metropolitan-district-council/wolverhampton","707855","Terberg Matec UK Limited","96345421","212.03","Equipment - Purchase","190365884","18/08/2017","Fleet Services","Fleet Management","R4000"
"Wolverhampton City Council","http://opendatacommunities.org/id/metropolitan-district-council/wolverhampton","707855","Terberg Matec UK Limited","96344456","212.03","Equipment - Purchase","190368324","30/08/2017","Fleet Services","Fleet Management","R4000"
"Wolverhampton City Council","http://opendatacommunities.org/id/metropolitan-district-council/wolverhampton","707855","Terberg Matec UK Limited","96345450","306.02","Services - Professional Fees","190368327","30/08/2017","Fleet Services","Fleet Management","R4400"
"Wolverhampton City Council","http://opendatacommunities.org/id/metropolitan-district-council/wolverhampton","707855","Terberg Matec UK Limited","96345750","250.25","Services - Professional Fees","190368328","30/08/2017","Fleet Services","Fleet Management","R4400"
"Wolverhampton City Council","http://opendatacommunities.org/id/metropolitan-district-council/wolverhampton","707855","Terberg Matec UK Limited","96344458","197.53","Equipment - Purchase","190368325","30/08/2017","Fleet Services","Fleet Management","R4000"
"Wolverhampton City Council","http://opendatacommunities.org/id/metropolitan-district-council/wolverhampton","707855","Terberg Matec UK Limited","96344563","0.39","Equipment - Purchase","190363015","04/08/2017","Fleet Services","Fleet Management","R4000"
"Wolverhampton City Council","http://opendatacommunities.org/id/metropolitan-district-council/wolverhampton","707855","Terberg Matec UK Limited","96344563","21.48","Equipment - Purchase","190363015","04/08/2017","Fleet Services","Fleet Management","R4000"
"Wolverhampton City Council","http://opendatacommunities.org/id/metropolitan-district-council/wolverhampton","707855","Terberg Matec UK Limited","96344563","157.51","Equipment - Purchase","190363015","04/08/2017","Fleet Services","Fleet Management","R4000"
"Wolverhampton City Council","http://opendatacommunities.org/id/metropolitan-district-council/wolverhampton","707855","Terberg Matec UK Limited","96345099","284.01","Equipment - Purchase","190364631","16/08/2017","Fleet Services","Fleet Management","R4000"
"Wolverhampton City Council","http://opendatacommunities.org/id/metropolitan-district-council/wolverhampton","707855","Terberg Matec UK Limited","96345099","18.34","Equipment - Purchase","190364631","16/08/2017","Fleet Services","Fleet Management","R4000"
"Wolverhampton City Council","http://opendatacommunities.org/id/metropolitan-district-council/wolverhampton","707855","Terberg Matec UK Limited","96344810","26.39","Equipment - Purchase","190368326","30/08/2017","Fleet Services","Fleet Management","R4000"
"Wolverhampton City Council","http://opendatacommunities.org/id/metropolitan-district-council/wolverhampton","707855","Terberg Matec UK Limited","96344810","26.39","Equipment - Purchase","190368326","30/08/2017","Fleet Services","Fleet Management","R4000"
"Wolverhampton City Council","http://opendatacommunities.org/id/metropolitan-district-council/wolverhampton","707855","Terberg Matec UK Limited","96344710","137.82","Equipment - Purchase","190363016","04/08/2017","Fleet Services","Fleet Management","R4000"
"Wolverhampton City Council","http://opendatacommunities.org/id/metropolitan-district-council/wolverhampton","707862","Tettenhall Wood Community Assoc.","413","213.00","Room Hire","130181208","09/08/2017","Adult Education","Creative Studies Delivery Area","R2201"
"Wolverhampton City Council","http://opendatacommunities.org/id/metropolitan-district-council/wolverhampton","707862","Tettenhall Wood Community Assoc.","413","284.00","Room Hire","130181208","09/08/2017","Adult Education","Creative Studies Delivery Area","R2201"
"Wolverhampton City Council","http://opendatacommunities.org/id/metropolitan-district-council/wolverhampton","707891","The Bigword Interpreting Serv. Limited","INV20182910","48.00","Services - Translation fees","130182436","25/08/2017","Child Protection","CIN/CP Social Work Unit - Area 7","R4406"
"Wolverhampton City Council","http://opendatacommunities.org/id/metropolitan-district-council/wolverhampton","707891","The Bigword Interpreting Serv. Limited","INV20182915","32.00","Services - Professional Fees","130182596","25/08/2017","Specialist Support","Intensive Family Support & Family Group Conferencing Team","R4400"
"Wolverhampton City Council","http://opendatacommunities.org/id/metropolitan-district-council/wolverhampton","707891","The Bigword Interpreting Serv. Limited","INV574991","110.22","Services - Translation fees","130183477","25/08/2017","Child Protection","CIN/CP S17  SW Unit - Area 4","R4406"
"Wolverhampton City Council","http://opendatacommunities.org/id/metropolitan-district-council/wolverhampton","707891","The Bigword Interpreting Serv. Limited","INV20170421","32.00","Services - Translation fees","130165774","25/08/2017","Healthier Places Service","Healthy Lifestyles Team","R4406"
"Wolverhampton City Council","http://opendatacommunities.org/id/metropolitan-district-council/wolverhampton","707891","The Bigword Interpreting Serv. Limited","INV574233","16.98","Services - Professional Fees","130182990","25/08/2017","Customer Services","City Direct","R4400"
"Wolverhampton City Council","http://opendatacommunities.org/id/metropolitan-district-council/wolverhampton","707891","The Bigword Interpreting Serv. Limited","INV20180924","64.00","Services - Translation fees","130179369","02/08/2017","Child Protection","CIN/CP Social Work Unit - Area 6","R4406"
"Wolverhampton City Council","http://opendatacommunities.org/id/metropolitan-district-council/wolverhampton","707891","The Bigword Interpreting Serv. Limited","INV20180929","64.00","Services - Professional Fees","130179374","02/08/2017","Looked After Children","Adoption and Residence Team & Allowances","R4400"
"Wolverhampton City Council","http://opendatacommunities.org/id/metropolitan-district-council/wolverhampton","707891","The Bigword Interpreting Serv. Limited","INV20180944","48.00","Services - Translation fees","130179388","02/08/2017","Child Protection","CIN/CP S17  SW Unit - Area 4","R4406"
"Wolverhampton City Council","http://opendatacommunities.org/id/metropolitan-district-council/wolverhampton","707891","The Bigword Interpreting Serv. Limited","INV20181022","32.00","Services - Translation fees","130179393","02/08/2017","Child Protection","CIN/CP S17  SW Unit - Area 4","R4406"
"Wolverhampton City Council","http://opendatacommunities.org/id/metropolitan-district-council/wolverhampton","707891","The Bigword Interpreting Serv. Limited","INV20181015","64.00","Services - Translation fees","130179390","02/08/2017","Child Protection","CIN/CP Social Work Unit - Area 3","R4406"
"Wolverhampton City Council","http://opendatacommunities.org/id/metropolitan-district-council/wolverhampton","707891","The Bigword Interpreting Serv. Limited","INV20180928","32.00","Services - Translation fees","130179373","02/08/2017","Mental Health Assesment & Care Management","Mental Health Assessment & Care Management","R4406"
"Wolverhampton City Council","http://opendatacommunities.org/id/metropolitan-district-council/wolverhampton","707891","The Bigword Interpreting Serv. Limited","INV20162431","48.00","Services - Translation fees","130152694","02/08/2017","Child Protection","CIN - Avenues MAST - Area 7","R4406"
"Wolverhampton City Council","http://opendatacommunities.org/id/metropolitan-district-council/wolverhampton","707891","The Bigword Interpreting Serv. Limited","INV20177787","48.00","Services - Translation fees","130174894","18/08/2017","Healthier Places Service","Healthy Lifestyles Team","R4406"
"Wolverhampton City Council","http://opendatacommunities.org/id/metropolitan-district-council/wolverhampton","707891","The Bigword Interpreting Serv. Limited","INV20176420","32.00","Services - Translation fees","130173359","18/08/2017","Healthier Places Service","Healthy Lifestyles Team","R4406"
"Wolverhampton City Council","http://opendatacommunities.org/id/metropolitan-district-council/wolverhampton","707891","The Bigword Interpreting Serv. Limited","INV20180142","32.00","Services - Translation fees","130178223","18/08/2017","Healthier Places Service","Healthy Lifestyles Team","R4406"
"Wolverhampton City Council","http://opendatacommunities.org/id/metropolitan-district-council/wolverhampton","707891","The Bigword Interpreting Serv. Limited","INV20182261","48.00","Services - Translation fees","130181069","16/08/2017","Child Protection","CIN/CP Social Work Unit - Area 7","R4406"
"Wolverhampton City Council","http://opendatacommunities.org/id/metropolitan-district-council/wolverhampton","707891","The Bigword Interpreting Serv. Limited","INV20182488","64.00","Services - Translation fees","130181431","16/08/2017","Child Protection","CIN/CP Social Work Unit - Area 7","R4406"
"Wolverhampton City Council","http://opendatacommunities.org/id/metropolitan-district-council/wolverhampton","707891","The Bigword Interpreting Serv. Limited","INV20182155","48.00","Services - Professional Fees","130182115","16/08/2017","Child Protection","CIN/CP Social Work Unit - Area 8","R4400"
"Wolverhampton City Council","http://opendatacommunities.org/id/metropolitan-district-council/wolverhampton","707891","The Bigword Interpreting Serv. Limited","INV20183834","32.00","Services - Professional Fees","130183289","30/08/2017","Specialist Support","Intensive Family Support & Family Group Conferencing Team","R4400"
"Wolverhampton City Council","http://opendatacommunities.org/id/metropolitan-district-council/wolverhampton","707891","The Bigword Interpreting Serv. Limited","INV20183837","64.00","Services - Translation fees","130183290","30/08/2017","Youth Offending","Youth Offending Team","R4406"
"Wolverhampton City Council","http://opendatacommunities.org/id/metropolitan-district-council/wolverhampton","707891","The Bigword Interpreting Serv. Limited","INV20182499","32.00","Services - Translation fees","130181433","16/08/2017","Child Protection","CIN/CP Social Work Unit - Area 2","R4406"
"Wolverhampton City Council","http://opendatacommunities.org/id/metropolitan-district-council/wolverhampton","707891","The Bigword Interpreting Serv. Limited","INV20181055","64.00","Services - Translation fees","130179624","04/08/2017","Child Protection","CIN/CP Social Work Unit - Area 6","R4406"
"Wolverhampton City Council","http://opendatacommunities.org/id/metropolitan-district-council/wolverhampton","707891","The Bigword Interpreting Serv. Limited","INV20181960","32.00","Services - Translation fees","130181211","16/08/2017","Early Intervention","EIP Locality 5 � Whitmore Reans","R4406"
"Wolverhampton City Council","http://opendatacommunities.org/id/metropolitan-district-council/wolverhampton","707891","The Bigword Interpreting Serv. Limited","INV20182487","72.00","Services - Translation fees","130181430","16/08/2017","Child Protection","CIN/CP Social Work Unit - Area 7","R4406"
"Wolverhampton City Council","http://opendatacommunities.org/id/metropolitan-district-council/wolverhampton","707891","The Bigword Interpreting Serv. Limited","INV20182759","64.00","Services - Translation fees","130182430","23/08/2017","Child Protection","CIN/CP S17  SW Unit - Area 5","R4406"
"Wolverhampton City Council","http://opendatacommunities.org/id/metropolitan-district-council/wolverhampton","707891","The Bigword Interpreting Serv. Limited","INV20182687","32.00","Services - Translation fees","130182261","23/08/2017","Child Protection","CIN/CP S17  SW Unit - Area 5","R4406"
"Wolverhampton City Council","http://opendatacommunities.org/id/metropolitan-district-council/wolverhampton","707891","The Bigword Interpreting Serv. Limited","INV20182653","64.00","Services - Translation fees","130182117","23/08/2017","Child Protection","CIN/CP S17  SW Unit - Area 4","R4406"
"Wolverhampton City Council","http://opendatacommunities.org/id/metropolitan-district-council/wolverhampton","707891","The Bigword Interpreting Serv. Limited","INV20182839","48.00","Services - Translation fees","130182433","23/08/2017","Child Protection","CIN/CP Social Work Unit - Area 4","R4406"
"Wolverhampton City Council","http://opendatacommunities.org/id/metropolitan-district-council/wolverhampton","707891","The Bigword Interpreting Serv. Limited","INV20181749","64.00","Services - Translation fees","130180468","11/08/2017","Child Protection","CIN/CP Social Work Unit - Area 7","R4406"
"Wolverhampton City Council","http://opendatacommunities.org/id/metropolitan-district-council/wolverhampton","707891","The Bigword Interpreting Serv. Limited","INV20182842","32.00","Services - Professional Fees","130182434","23/08/2017","Independent Living Service","Independent Living Service","R4400"
"Wolverhampton City Council","http://opendatacommunities.org/id/metropolitan-district-council/wolverhampton","707891","The Bigword Interpreting Serv. Limited","INV20181719","32.00","Services - Translation fees","130180466","09/08/2017","Child Protection","CIN/CP S17  SW Unit - Area 4","R4406"
"Wolverhampton City Council","http://opendatacommunities.org/id/metropolitan-district-council/wolverhampton","707891","The Bigword Interpreting Serv. Limited","INV20181591","48.00","Services - Translation fees","130180463","09/08/2017","Child Protection","CIN/CP Social Work Unit - Area 8","R4406"
"Wolverhampton City Council","http://opendatacommunities.org/id/metropolitan-district-council/wolverhampton","707891","The Bigword Interpreting Serv. Limited","INV20181332","64.00","Services - Translation fees","130179884","09/08/2017","Child Protection","CIN/CP S17  SW Unit - Area 4","R4406"
"Wolverhampton City Council","http://opendatacommunities.org/id/metropolitan-district-council/wolverhampton","707891","The Bigword Interpreting Serv. Limited","INV20181408","32.00","Services - Translation fees","130180068","09/08/2017","Child Protection","CIN/CP S17  SW Unit - Area 4","R4406"
"Wolverhampton City Council","http://opendatacommunities.org/id/metropolitan-district-council/wolverhampton","707891","The Bigword Interpreting Serv. Limited","INV20181741","40.00","Services - Professional Fees","130180467","09/08/2017","Adults Assessment & Care Management East","Assessment Team (East)","R4400"
"Wolverhampton City Council","http://opendatacommunities.org/id/metropolitan-district-council/wolverhampton","707891","The Bigword Interpreting Serv. Limited","INV20180942","48.00","Services - Translation fees","130179386","02/08/2017","Child Protection","CIN/CP S17  SW Unit - Area 4","R4406"
"Wolverhampton City Council","http://opendatacommunities.org/id/metropolitan-district-council/wolverhampton","707891","The Bigword Interpreting Serv. Limited","INV20180943","64.00","Services - Translation fees","130179387","02/08/2017","Child Protection","CIN/CP S17  SW Unit - Area 4","R4406"
"Wolverhampton City Council","http://opendatacommunities.org/id/metropolitan-district-council/wolverhampton","707891","The Bigword Interpreting Serv. Limited","INV20180935","160.00","Services - Professional Fees","130179380","02/08/2017","Looked After Children","Fostering Team & Allowances","R4400"
"Wolverhampton City Council","http://opendatacommunities.org/id/metropolitan-district-council/wolverhampton","707891","The Bigword Interpreting Serv. Limited","INV20172866","32.00","Services - Translation fees","130169438","25/08/2017","Healthier Places Service","Healthy Lifestyles Team","R4406"
"Wolverhampton City Council","http://opendatacommunities.org/id/metropolitan-district-council/wolverhampton","707891","The Bigword Interpreting Serv. Limited","INV574315","192.06","Services - Translation fees","130183892","25/08/2017","Early Intervention","EIP Locality 3 - Graiseley","R4406"
"Wolverhampton City Council","http://opendatacommunities.org/id/metropolitan-district-council/wolverhampton","707891","The Bigword Interpreting Serv. Limited","INV20182928","64.00","Services - Translation fees","130182597","25/08/2017","Child Protection","CIN/CP Social Work Unit - Area 7","R4406"
"Wolverhampton City Council","http://opendatacommunities.org/id/metropolitan-district-council/wolverhampton","707891","The Bigword Interpreting Serv. Limited","INV574547","12.88","Services - Translation fees","130182991","25/08/2017","Looked After Children","LAC Transitions Team","R4406"
"Wolverhampton City Council","http://opendatacommunities.org/id/metropolitan-district-council/wolverhampton","707891","The Bigword Interpreting Serv. Limited","INV575033","49.76","Services - Translation fees","130182994","25/08/2017","Child Protection","CIN/CP Social Work Unit - Area 7","R4406"
"Wolverhampton City Council","http://opendatacommunities.org/id/metropolitan-district-council/wolverhampton","707891","The Bigword Interpreting Serv. Limited","INV20181021","32.00","Services - Translation fees","130179392","02/08/2017","Child Protection","CIN/CP Social Work Unit - Area 1","R4406"
"Wolverhampton City Council","http://opendatacommunities.org/id/metropolitan-district-council/wolverhampton","707891","The Bigword Interpreting Serv. Limited","INV20180923","64.00","Services - Translation fees","130179368","02/08/2017","Child Protection","CIN/CP Social Work Unit - Area 6","R4406"
"Wolverhampton City Council","http://opendatacommunities.org/id/metropolitan-district-council/wolverhampton","707891","The Bigword Interpreting Serv. Limited","INV20180922","32.00","Services - Translation fees","130179367","02/08/2017","Child Protection","CIN/CP Social Work Unit - Area 7","R4406"
"Wolverhampton City Council","http://opendatacommunities.org/id/metropolitan-district-council/wolverhampton","707891","The Bigword Interpreting Serv. Limited","INV20180926","64.00","Services - Translation fees","130179371","02/08/2017","Child Protection","CIN/CP Social Work Unit - Area 6","R4406"
"Wolverhampton City Council","http://opendatacommunities.org/id/metropolitan-district-council/wolverhampton","707891","The Bigword Interpreting Serv. Limited","INV20182559","32.00","Services - Professional Fees","130181556","18/08/2017","Independent Living Service","Independent Living Service","R4400"
"Wolverhampton City Council","http://opendatacommunities.org/id/metropolitan-district-council/wolverhampton","707891","The Bigword Interpreting Serv. Limited","INV20179084","32.00","Services - Translation fees","130176826","18/08/2017","Healthier Places Service","Healthy Lifestyles Team","R4406"
"Wolverhampton City Council","http://opendatacommunities.org/id/metropolitan-district-council/wolverhampton","707891","The Bigword Interpreting Serv. Limited","INV20174337","32.00","Services - Translation fees","130171217","18/08/2017","Healthier Places Service","Healthy Lifestyles Team","R4406"
"Wolverhampton City Council","http://opendatacommunities.org/id/metropolitan-district-council/wolverhampton","707891","The Bigword Interpreting Serv. Limited","INV20182500","48.00","Services - Translation fees","130181434","16/08/2017","Child Protection","CIN/CP S17  SW Unit - Area 4","R4406"
"Wolverhampton City Council","http://opendatacommunities.org/id/metropolitan-district-council/wolverhampton","707891","The Bigword Interpreting Serv. Limited","INV20182486","64.00","Services - Translation fees","130181429","16/08/2017","Child Protection","CIN/CP Social Work Unit - Area 6","R4406"
"Wolverhampton City Council","http://opendatacommunities.org/id/metropolitan-district-council/wolverhampton","707891","The Bigword Interpreting Serv. Limited","INV574375","0.93","Services - Professional Fees","130183893","30/08/2017","Carer Support","Carers Support","R4400"
"Wolverhampton City Council","http://opendatacommunities.org/id/metropolitan-district-council/wolverhampton","707891","The Bigword Interpreting Serv. Limited","INV20183833","32.00","Services - Professional Fees","130183288","30/08/2017","Specialist Support","Intensive Family Support & Family Group Conferencing Team","R4400"
"Wolverhampton City Council","http://opendatacommunities.org/id/metropolitan-district-council/wolverhampton","707891","The Bigword Interpreting Serv. Limited","INV20182484","32.00","Services - Professional Fees","130181428","16/08/2017","Governance Services","Democratic Support","R4400"
"Wolverhampton City Council","http://opendatacommunities.org/id/metropolitan-district-council/wolverhampton","707891","The Bigword Interpreting Serv. Limited","INV20181165","32.00","Services - Professional Fees","130179627","04/08/2017","Adults Assessment & Care Management East","Assessment Team (East)","R4400"
"Wolverhampton City Council","http://opendatacommunities.org/id/metropolitan-district-council/wolverhampton","707891","The Bigword Interpreting Serv. Limited","INV20182258","32.00","Services - Professional Fees","130181066","16/08/2017","Governance Services","Democratic Support","R4400"
"Wolverhampton City Council","http://opendatacommunities.org/id/metropolitan-district-council/wolverhampton","707891","The Bigword Interpreting Serv. Limited","INV20182312","80.00","Services - Translation fees","130181216","16/08/2017","Child Protection","CIN/CP Social Work Unit - Area 7","R4406"
"Wolverhampton City Council","http://opendatacommunities.org/id/metropolitan-district-council/wolverhampton","707891","The Bigword Interpreting Serv. Limited","INV20181759","80.00","Services - Translation fees","130181064","11/08/2017","Child Protection","CIN/CP Social Work Unit - Area 8","R4406"
"Wolverhampton City Council","http://opendatacommunities.org/id/metropolitan-district-council/wolverhampton","707891","The Bigword Interpreting Serv. Limited","INV20181286","64.00","Services - Translation fees","130179883","09/08/2017","Child Protection","CIN/CP S17  SW Unit - Area 5","R4406"
"Wolverhampton City Council","http://opendatacommunities.org/id/metropolitan-district-council/wolverhampton","707891","The Bigword Interpreting Serv. Limited","INV20181422","48.00","Services - Translation fees","130180462","09/08/2017","Child Protection","CIN/CP Social Work Unit - Area 8","R4406"
"Wolverhampton City Council","http://opendatacommunities.org/id/metropolitan-district-council/wolverhampton","707891","The Bigword Interpreting Serv. Limited","INV20181333","32.00","Services - Translation fees","130179885","09/08/2017","Child Protection","CIN/CP S17  SW Unit - Area 4","R4406"
"Wolverhampton City Council","http://opendatacommunities.org/id/metropolitan-district-council/wolverhampton","707891","The Bigword Interpreting Serv. Limited","INV20181714","40.00","Services - Professional Fees","130180465","09/08/2017","Adults Assessment & Care Management East","Assessment Team (East)","R4400"
"Wolverhampton City Council","http://opendatacommunities.org/id/metropolitan-district-council/wolverhampton","707891","The Bigword Interpreting Serv. Limited","INV20181705","32.00","Services - Translation fees","130180464","09/08/2017","Child Protection","CIN/CP S17  SW Unit - Area 5","R4406"
"Wolverhampton City Council","http://opendatacommunities.org/id/metropolitan-district-council/wolverhampton","707891","The Bigword Interpreting Serv. Limited","INV20182754","48.00","Services - Professional Fees","130182267","23/08/2017","Adults Assessment & Care Management East","Assessment Team (East)","R4400"
"Wolverhampton City Council","http://opendatacommunities.org/id/metropolitan-district-council/wolverhampton","707891","The Bigword Interpreting Serv. Limited","INV20182838","32.00","Services - Translation fees","130182432","23/08/2017","Child Protection","CIN/CP Social Work Unit - Area 4","R4406"
"Wolverhampton City Council","http://opendatacommunities.org/id/metropolitan-district-council/wolverhampton","707891","The Bigword Interpreting Serv. Limited","INV20181859","128.00","Services - Professional Fees","130180747","11/08/2017","Looked After Children","Fostering Team & Allowances","R4400"
"Wolverhampton City Council","http://opendatacommunities.org/id/metropolitan-district-council/wolverhampton","707891","The Bigword Interpreting Serv. Limited","INV20182670","32.00","Services - Translation fees","130182122","23/08/2017","Child Protection","CIN/CP S17  SW Unit - Area 4","R4406"
"Wolverhampton City Council","http://opendatacommunities.org/id/metropolitan-district-council/wolverhampton","707891","The Bigword Interpreting Serv. Limited","INV20182630","48.00","Services - Translation fees","130181937","23/08/2017","Child Protection","CIN/CP S17  SW Unit - Area 4","R4406"
"Wolverhampton City Council","http://opendatacommunities.org/id/metropolitan-district-council/wolverhampton","707891","The Bigword Interpreting Serv. Limited","INV20182680","32.00","Services - Translation fees","130182260","23/08/2017","Child Protection","CIN/CP Social Work Unit - Area 3","R4406"
"Wolverhampton City Council","http://opendatacommunities.org/id/metropolitan-district-council/wolverhampton","707891","The Bigword Interpreting Serv. Limited","INV20182753","64.00","Services - Professional Fees","130182266","23/08/2017","Carer Support","Carers Support","R4400"
"Wolverhampton City Council","http://opendatacommunities.org/id/metropolitan-district-council/wolverhampton","707891","The Bigword Interpreting Serv. Limited","INV20182235","48.00","Services - Translation fees","130181065","16/08/2017","Child Protection","CIN/CP Social Work Unit - Area 2","R4406"
"Wolverhampton City Council","http://opendatacommunities.org/id/metropolitan-district-council/wolverhampton","707891","The Bigword Interpreting Serv. Limited","INV20181163","48.00","Services - Translation fees","130179625","04/08/2017","Child Protection","CIN/CP S17  SW Unit - Area 4","R4406"
"Wolverhampton City Council","http://opendatacommunities.org/id/metropolitan-district-council/wolverhampton","707891","The Bigword Interpreting Serv. Limited","INV20182293","32.00","Services - Translation fees","130181213","16/08/2017","Youth Offending","Youth Offending Team","R4406"
"Wolverhampton City Council","http://opendatacommunities.org/id/metropolitan-district-council/wolverhampton","707891","The Bigword Interpreting Serv. Limited","INV20182507","32.00","Services - Professional Fees","130181435","16/08/2017","Governance Services","Democratic Support","R4400"
"Wolverhampton City Council","http://opendatacommunities.org/id/metropolitan-district-council/wolverhampton","707891","The Bigword Interpreting Serv. Limited","INV20182632","40.00","Services - Professional Fees","130181938","23/08/2017","Adults Assessment & Care Management East","Assessment Team (East)","R4400"
"Wolverhampton City Council","http://opendatacommunities.org/id/metropolitan-district-council/wolverhampton","707891","The Bigword Interpreting Serv. Limited","INV20182662","48.00","Services - Translation fees","130182120","23/08/2017","Child Protection","CIN/CP Social Work Unit - Area 7","R4406"
"Wolverhampton City Council","http://opendatacommunities.org/id/metropolitan-district-council/wolverhampton","707891","The Bigword Interpreting Serv. Limited","INV20182671","32.00","Services - Translation fees","130182123","23/08/2017","Child Protection","CIN/CP S17  SW Unit - Area 4","R4406"
"Wolverhampton City Council","http://opendatacommunities.org/id/metropolitan-district-council/wolverhampton","707891","The Bigword Interpreting Serv. Limited","INV20182695","32.00","Services - Translation fees","130182262","23/08/2017","Child Protection","CIN/CP S17  SW Unit - Area 4","R4406"
"Wolverhampton City Council","http://opendatacommunities.org/id/metropolitan-district-council/wolverhampton","707891","The Bigword Interpreting Serv. Limited","INV20181865","32.00","Services - Translation fees","130180748","11/08/2017","Child Protection","CIN/CP Social Work Unit - Area 7","R4406"
"Wolverhampton City Council","http://opendatacommunities.org/id/metropolitan-district-council/wolverhampton","707891","The Bigword Interpreting Serv. Limited","INV20182844","32.00","Services - Professional Fees","130182435","23/08/2017","Adults Assessment & Care Management East","Assessment Team (East)","R4400"
"Wolverhampton City Council","http://opendatacommunities.org/id/metropolitan-district-council/wolverhampton","707891","The Bigword Interpreting Serv. Limited","INV20182661","64.00","Services - Translation fees","130182119","23/08/2017","Child Protection","CIN/CP Social Work Unit - Area 6","R4406"
"Wolverhampton City Council","http://opendatacommunities.org/id/metropolitan-district-council/wolverhampton","707891","The Bigword Interpreting Serv. Limited","INV20181345","64.00","Services - Professional Fees","130179886","09/08/2017","Adults Assessment & Care Management East","Assessment Team (East)","R4400"
"Wolverhampton City Council","http://opendatacommunities.org/id/metropolitan-district-council/wolverhampton","707891","The Bigword Interpreting Serv. Limited","INV20181630","144.00","Services - Translation fees","130181063","09/08/2017","Early Intervention","EIP Locality 4 - Bingley","R4406"
"Wolverhampton City Council","http://opendatacommunities.org/id/metropolitan-district-council/wolverhampton","707891","The Bigword Interpreting Serv. Limited","INV20181418","32.00","Services - Professional Fees","130180069","09/08/2017","Adults Assessment & Care Management East","Assessment Team (East)","R4400"
"Wolverhampton City Council","http://opendatacommunities.org/id/metropolitan-district-council/wolverhampton","707891","The Bigword Interpreting Serv. Limited","INV20181346","48.00","Services - Translation fees","130180263","09/08/2017","Child Protection","CIN/CP Social Work Unit - Area 8","R4406"
"Wolverhampton City Council","http://opendatacommunities.org/id/metropolitan-district-council/wolverhampton","707891","The Bigword Interpreting Serv. Limited","INV20181539","40.00","Services - Translation fees","130180924","09/08/2017","Early Intervention","EIP Locality 4 - Bingley","R4406"
"Wolverhampton City Council","http://opendatacommunities.org/id/metropolitan-district-council/wolverhampton","707891","The Bigword Interpreting Serv. Limited","INV20182560","48.00","Services - Professional Fees","130181557","18/08/2017","Adults Assessment & Care Management East","Assessment Team (East)","R4400"
"Wolverhampton City Council","http://opendatacommunities.org/id/metropolitan-district-council/wolverhampton","707891","The Bigword Interpreting Serv. Limited","INV20178296","32.00","Services - Translation fees","130175569","18/08/2017","Healthier Places Service","Healthy Lifestyles Team","R4406"
"Wolverhampton City Council","http://opendatacommunities.org/id/metropolitan-district-council/wolverhampton","707891","The Bigword Interpreting Serv. Limited","INV20180939","32.00","Services - Translation fees","130179383","18/08/2017","Healthier Places Service","Healthy Lifestyles Team","R4406"
"Wolverhampton City Council","http://opendatacommunities.org/id/metropolitan-district-council/wolverhampton","707891","The Bigword Interpreting Serv. Limited","INV20182973","32.00","Services - Translation fees","130182598","25/08/2017","Child Protection","CIN/CP S17  SW Unit - Area 5","R4406"
"Wolverhampton City Council","http://opendatacommunities.org/id/metropolitan-district-council/wolverhampton","707891","The Bigword Interpreting Serv. Limited","80027995","15.20","Services - Professional Fees","130182772","25/08/2017","Child Protection","CIN/CP S17  SW Unit - Area 3","R4400"
"Wolverhampton City Council","http://opendatacommunities.org/id/metropolitan-district-council/wolverhampton","707891","The Bigword Interpreting Serv. Limited","INV574230","2.85","Services - Professional Fees","130182989","25/08/2017","Child Protection","Childrens with Disabilities Team","R4400"
"Wolverhampton City Council","http://opendatacommunities.org/id/metropolitan-district-council/wolverhampton","707891","The Bigword Interpreting Serv. Limited","INV20182913","48.00","Services - Translation fees","130182437","25/08/2017","Child Protection","CIN/CP S17  SW Unit - Area 5","R4406"
"Wolverhampton City Council","http://opendatacommunities.org/id/metropolitan-district-council/wolverhampton","707891","The Bigword Interpreting Serv. Limited","INV20171313","32.00","Services - Translation fees","130166818","25/08/2017","Healthier Places Service","Healthy Lifestyles Team","R4406"
"Wolverhampton City Council","http://opendatacommunities.org/id/metropolitan-district-council/wolverhampton","707891","The Bigword Interpreting Serv. Limited","INV20180934","48.00","Services - Translation fees","130179379","02/08/2017","Child Protection","CIN/CP Social Work Unit - Area 1","R4406"
"Wolverhampton City Council","http://opendatacommunities.org/id/metropolitan-district-council/wolverhampton","707891","The Bigword Interpreting Serv. Limited","INV20180931","64.00","Services - Translation fees","130179376","02/08/2017","Early Intervention","EIP Locality 3 - Graiseley","R4406"
"Wolverhampton City Council","http://opendatacommunities.org/id/metropolitan-district-council/wolverhampton","707891","The Bigword Interpreting Serv. Limited","INV20180947","32.00","Services - Translation fees","130179881","02/08/2017","Early Intervention","EIP Locality 5 � Whitmore Reans","R4406"
"Wolverhampton City Council","http://opendatacommunities.org/id/metropolitan-district-council/wolverhampton","707891","The Bigword Interpreting Serv. Limited","INV20180937","32.00","Services - Professional Fees","130179382","02/08/2017","Governance Services","Democratic Support","R4400"
"Wolverhampton City Council","http://opendatacommunities.org/id/metropolitan-district-council/wolverhampton","707891","The Bigword Interpreting Serv. Limited","INV20180945","48.00","Services - Translation fees","130179389","02/08/2017","Child Protection","CIN/CP S17  SW Unit - Area 4","R4406"
"Wolverhampton City Council","http://opendatacommunities.org/id/metropolitan-district-council/wolverhampton","707891","The Bigword Interpreting Serv. Limited","INV20181023","64.00","Services - Translation fees","130179394","02/08/2017","Child Protection","CIN/CP S17  SW Unit - Area 4","R4406"
"Wolverhampton City Council","http://opendatacommunities.org/id/metropolitan-district-council/wolverhampton","707891","The Bigword Interpreting Serv. Limited","INV20180932","40.00","Services - Professional Fees","130179377","02/08/2017","Looked After Children","Looked After Team 1","R4400"
"Wolverhampton City Council","http://opendatacommunities.org/id/metropolitan-district-council/wolverhampton","707891","The Bigword Interpreting Serv. Limited","INV20162430","72.00","Services - Translation fees","130152693","02/08/2017","Child Protection","CIN - Avenues MAST - Area 7","R4406"
"Wolverhampton City Council","http://opendatacommunities.org/id/metropolitan-district-council/wolverhampton","707891","The Bigword Interpreting Serv. Limited","INV20182292","48.00","Services - Translation fees","130181212","16/08/2017","Child Protection","CIN/CP S17  SW Unit - Area 4","R4406"
"Wolverhampton City Council","http://opendatacommunities.org/id/metropolitan-district-council/wolverhampton","707891","The Bigword Interpreting Serv. Limited","INV20182083","64.00","Services - Translation fees","130180926","16/08/2017","Child Protection","CIN/CP S17  SW Unit - Area 5","R4406"
"Wolverhampton City Council","http://opendatacommunities.org/id/metropolitan-district-council/wolverhampton","707891","The Bigword Interpreting Serv. Limited","INV20182322","176.00","Services - Translation fees","130181427","16/08/2017","Child Protection","CIN/CP Social Work Unit - Area 6","R4406"
"Wolverhampton City Council","http://opendatacommunities.org/id/metropolitan-district-council/wolverhampton","707891","The Bigword Interpreting Serv. Limited","INV20183840","32.00","Services - Translation fees","130183292","30/08/2017","Child Protection","CIN/CP S17  SW Unit - Area 5","R4406"
"Wolverhampton City Council","http://opendatacommunities.org/id/metropolitan-district-council/wolverhampton","707891","The Bigword Interpreting Serv. Limited","INV20183830","32.00","Services - Professional Fees","130183285","30/08/2017","Adults Assessment & Care Management East","Assessment Team (East)","R4400"
"Wolverhampton City Council","http://opendatacommunities.org/id/metropolitan-district-council/wolverhampton","707891","The Bigword Interpreting Serv. Limited","INV20181487","56.00","Services - Translation fees","130180923","09/08/2017","Early Intervention","EIP Locality 4 - Bingley","R4406"
"Wolverhampton City Council","http://opendatacommunities.org/id/metropolitan-district-council/wolverhampton","707891","The Bigword Interpreting Serv. Limited","INV20182257","32.00","Services - Professional Fees","130182116","16/08/2017","Child Protection","CIN/CP Social Work Unit - Area 8","R4400"
"Wolverhampton City Council","http://opendatacommunities.org/id/metropolitan-district-council/wolverhampton","707891","The Bigword Interpreting Serv. Limited","INV20181164","48.00","Services - Translation fees","130179626","04/08/2017","Child Protection","CIN/CP S17  SW Unit - Area 4","R4406"
"Wolverhampton City Council","http://opendatacommunities.org/id/metropolitan-district-council/wolverhampton","707891","The Bigword Interpreting Serv. Limited","INV20182311","32.00","Services - Professional Fees","130181215","16/08/2017","Governance Services","Democratic Support","R4400"
"Wolverhampton City Council","http://opendatacommunities.org/id/metropolitan-district-council/wolverhampton","707891","The Bigword Interpreting Serv. Limited","INV20182673","40.00","Services - Professional Fees","130182125","23/08/2017","Adults Assessment & Care Management East","Assessment Team (East)","R4400"
"Wolverhampton City Council","http://opendatacommunities.org/id/metropolitan-district-council/wolverhampton","707891","The Bigword Interpreting Serv. Limited","INV20181858","216.00","Services - Professional Fees","130180746","11/08/2017","Looked After Children","Fostering Team & Allowances","R4400"
"Wolverhampton City Council","http://opendatacommunities.org/id/metropolitan-district-council/wolverhampton","707891","The Bigword Interpreting Serv. Limited","INV20169497","32.00","Services - Translation fees","130164392","23/08/2017","Child Protection","CIN/CP S17  SW Unit - Area 3","R4406"
"Wolverhampton City Council","http://opendatacommunities.org/id/metropolitan-district-council/wolverhampton","707891","The Bigword Interpreting Serv. Limited","INV20182750","32.00","Services - Translation fees","130182264","23/08/2017","Child Protection","CIN/CP S17  SW Unit - Area 4","R4406"
"Wolverhampton City Council","http://opendatacommunities.org/id/metropolitan-district-council/wolverhampton","707891","The Bigword Interpreting Serv. Limited","INV20182696","48.00","Services - Translation fees","130182263","23/08/2017","Child Protection","CIN/CP S17  SW Unit - Area 4","R4406"
"Wolverhampton City Council","http://opendatacommunities.org/id/metropolitan-district-council/wolverhampton","707891","The Bigword Interpreting Serv. Limited","INV20182672","32.00","Services - Professional Fees","130182124","23/08/2017","Child Protection","CIN/CP Social Work Unit - Area 8","R4400"
"Wolverhampton City Council","http://opendatacommunities.org/id/metropolitan-district-council/wolverhampton","707891","The Bigword Interpreting Serv. Limited","80026855","240.24","Services - Professional Fees","130181209","09/08/2017","Safeguarding","Head of Service Quality and Safeguarding","R4400"
"Wolverhampton City Council","http://opendatacommunities.org/id/metropolitan-district-council/wolverhampton","707891","The Bigword Interpreting Serv. Limited","INV20181523","32.00","Services - Translation fees","130180264","09/08/2017","Child Protection","CIN/CP Social Work Unit - Area 7","R4406"
"Wolverhampton City Council","http://opendatacommunities.org/id/metropolitan-district-council/wolverhampton","707891","The Bigword Interpreting Serv. Limited","INV20181581","48.00","Services - Translation fees","130180266","09/08/2017","Child Protection","CIN/CP Social Work Unit - Area 2","R4406"
"Wolverhampton City Council","http://opendatacommunities.org/id/metropolitan-district-council/wolverhampton","707891","The Bigword Interpreting Serv. Limited","INV20181542","64.00","Services - Translation fees","130180265","09/08/2017","Child Protection","CIN/CP S17  SW Unit - Area 5","R4406"
"Wolverhampton City Council","http://opendatacommunities.org/id/metropolitan-district-council/wolverhampton","707891","The Bigword Interpreting Serv. Limited","INV20180930","32.00","Services - Translation fees","130179375","09/08/2017","Child Protection","Childrens with Disabilities Team","R4406"
"Wolverhampton City Council","http://opendatacommunities.org/id/metropolitan-district-council/wolverhampton","707891","The Bigword Interpreting Serv. Limited","INV20182752","64.00","Services - Translation fees","130182265","23/08/2017","Child Protection","CIN/CP Social Work Unit - Area 6","R4406"
"Wolverhampton City Council","http://opendatacommunities.org/id/metropolitan-district-council/wolverhampton","707891","The Bigword Interpreting Serv. Limited","INV20182310","40.00","Services - Professional Fees","130181214","16/08/2017","Governance Services","Democratic Support","R4400"
"Wolverhampton City Council","http://opendatacommunities.org/id/metropolitan-district-council/wolverhampton","707891","The Bigword Interpreting Serv. Limited","INV20182141","64.00","Services - Translation fees","130180927","16/08/2017","Child Protection","CIN/CP Social Work Unit - Area 7","R4406"
"Wolverhampton City Council","http://opendatacommunities.org/id/metropolitan-district-council/wolverhampton","707891","The Bigword Interpreting Serv. Limited","INV20182498","48.00","Services - Translation fees","130181432","16/08/2017","Child Protection","CIN/CP S17  SW Unit - Area 4","R4406"
"Wolverhampton City Council","http://opendatacommunities.org/id/metropolitan-district-council/wolverhampton","707891","The Bigword Interpreting Serv. Limited","INV20180925","64.00","Services - Translation fees","130179370","02/08/2017","Child Protection","CIN/CP Social Work Unit - Area 6","R4406"
"Wolverhampton City Council","http://opendatacommunities.org/id/metropolitan-district-council/wolverhampton","707891","The Bigword Interpreting Serv. Limited","INV20181020","32.00","Services - Translation fees","130179391","02/08/2017","Child Protection","CIN/CP Social Work Unit - Area 6","R4406"
"Wolverhampton City Council","http://opendatacommunities.org/id/metropolitan-district-council/wolverhampton","707891","The Bigword Interpreting Serv. Limited","INV20180933","184.00","Services - Translation fees","130179378","02/08/2017","Child Protection","CIN/CP Social Work Unit - Area 7","R4406"
"Wolverhampton City Council","http://opendatacommunities.org/id/metropolitan-district-council/wolverhampton","707891","The Bigword Interpreting Serv. Limited","INV20180936","64.00","Services - Translation fees","130179381","02/08/2017","Child Protection","CIN/CP Social Work Unit - Area 6","R4406"
"Wolverhampton City Council","http://opendatacommunities.org/id/metropolitan-district-council/wolverhampton","707891","The Bigword Interpreting Serv. Limited","INV20180920","32.00","Services - Professional Fees","130179366","02/08/2017","Adults Assessment & Care Management East","Assessment Team (East)","R4400"
"Wolverhampton City Council","http://opendatacommunities.org/id/metropolitan-district-council/wolverhampton","707891","The Bigword Interpreting Serv. Limited","INV20162425","64.00","Services - Translation fees","130152688","02/08/2017","Child Protection","CIN - Avenues MAST - Area 7","R4406"
"Wolverhampton City Council","http://opendatacommunities.org/id/metropolitan-district-council/wolverhampton","707891","The Bigword Interpreting Serv. Limited","INV20180941","48.00","Services - Translation fees","130179385","02/08/2017","Child Protection","CIN/CP S17  SW Unit - Area 4","R4406"
"Wolverhampton City Council","http://opendatacommunities.org/id/metropolitan-district-council/wolverhampton","707891","The Bigword Interpreting Serv. Limited","INV20180946","48.00","Services - Professional Fees","130181555","02/08/2017","Child Protection","CIN/CP Social Work Unit - Area 8","R4400"
"Wolverhampton City Council","http://opendatacommunities.org/id/metropolitan-district-council/wolverhampton","707891","The Bigword Interpreting Serv. Limited","INV574892","21.44","Services - Translation fees","130182993","25/08/2017","Safeguarding","Safeguarding and Quality - Adults","R4406"
"Wolverhampton City Council","http://opendatacommunities.org/id/metropolitan-district-council/wolverhampton","707891","The Bigword Interpreting Serv. Limited","INV20172186","32.00","Services - Translation fees","130168351","25/08/2017","Healthier Places Service","Healthy Lifestyles Team","R4406"
"Wolverhampton City Council","http://opendatacommunities.org/id/metropolitan-district-council/wolverhampton","707891","The Bigword Interpreting Serv. Limited","INV574727","8.17","Services - Translation fees","130183894","25/08/2017","Early Intervention","EIP Locality 8 � Children�s Village","R4406"
"Wolverhampton City Council","http://opendatacommunities.org/id/metropolitan-district-council/wolverhampton","707891","The Bigword Interpreting Serv. Limited","INV574934","54.73","Services - Translation fees","130183895","25/08/2017","Early Intervention","EIP Locality 4 - Bingley","R4406"
"Wolverhampton City Council","http://opendatacommunities.org/id/metropolitan-district-council/wolverhampton","707891","The Bigword Interpreting Serv. Limited","INV20182658","48.00","Services - Translation fees","130182118","23/08/2017","Early Intervention","EIP Locality 5 � Whitmore Reans","R4406"
"Wolverhampton City Council","http://opendatacommunities.org/id/metropolitan-district-council/wolverhampton","707891","The Bigword Interpreting Serv. Limited","INV20174894","64.00","Services - Translation fees","130172095","18/08/2017","Healthier Places Service","Healthy Lifestyles Team","R4406"
"Wolverhampton City Council","http://opendatacommunities.org/id/metropolitan-district-council/wolverhampton","707891","The Bigword Interpreting Serv. Limited","INV20178297","32.00","Services - Translation fees","130175570","18/08/2017","Healthier Places Service","Healthy Lifestyles Team","R4406"
"Wolverhampton City Council","http://opendatacommunities.org/id/metropolitan-district-council/wolverhampton","707891","The Bigword Interpreting Serv. Limited","INV20181166","32.00","Services - Translation fees","130179628","18/08/2017","Healthier Places Service","Healthy Lifestyles Team","R4406"
"Wolverhampton City Council","http://opendatacommunities.org/id/metropolitan-district-council/wolverhampton","707891","The Bigword Interpreting Serv. Limited","INV20183832","32.00","Services - Translation fees","130183287","30/08/2017","Early Intervention","EIP Locality 3 - Graiseley","R4406"
"Wolverhampton City Council","http://opendatacommunities.org/id/metropolitan-district-council/wolverhampton","707891","The Bigword Interpreting Serv. Limited","INV20178434","48.00","Services - Translation fees","130175789","30/08/2017","Child Protection","CIN/CP Social Work Unit - Area 7","R4406"
"Wolverhampton City Council","http://opendatacommunities.org/id/metropolitan-district-council/wolverhampton","707928","The Columbaria Company T/A Odlings","INV0055685","82.00","Materials","130183092","30/08/2017","Bereavement Services","Cemeteries","R4007"
"Wolverhampton City Council","http://opendatacommunities.org/id/metropolitan-district-council/wolverhampton","707928","The Columbaria Company T/A Odlings","INV0054230","82.00","Materials","130171870","09/08/2017","Bereavement Services","Cemeteries","R4007"
"Wolverhampton City Council","http://opendatacommunities.org/id/metropolitan-district-council/wolverhampton","707937","The Co-Operative Memorials","015-15-0477877","180.00","Services - Professional Fees","130177901","09/08/2017","Bereavement Services","Cemeteries","R4400"
"Wolverhampton City Council","http://opendatacommunities.org/id/metropolitan-district-council/wolverhampton","707946","The Disabled Adaptations Service","16/0272/DFG","409.00","Grants paid out","190367182","23/08/2017","-","Disabled Facilities Grants","C5000"
"Wolverhampton City Council","http://opendatacommunities.org/id/metropolitan-district-council/wolverhampton","707946","The Disabled Adaptations Service","17/0108/SAG","50.00","Grants paid out","190365827","18/08/2017","-","Disabled Facilities Grants","C5000"
"Wolverhampton City Council","http://opendatacommunities.org/id/metropolitan-district-council/wolverhampton","707946","The Disabled Adaptations Service","16/0222/DFG","520.80","Grants paid out","190362701","02/08/2017","-","Disabled Facilities Grants","C5000"
"Wolverhampton City Council","http://opendatacommunities.org/id/metropolitan-district-council/wolverhampton","707946","The Disabled Adaptations Service","16/0033/DFG","492.10","Grants paid out","190365826","18/08/2017","-","Disabled Facilities Grants","C5000"
"Wolverhampton City Council","http://opendatacommunities.org/id/metropolitan-district-council/wolverhampton","707946","The Disabled Adaptations Service","16/0585/DFG","377.00","Grants paid out","190367185","23/08/2017","-","Disabled Facilities Grants","C5000"
"Wolverhampton City Council","http://opendatacommunities.org/id/metropolitan-district-council/wolverhampton","707975","The Grafix Workshop","641","97.00","Signage and Labels","130180473","02/08/2017","Parking Services","Car Parks Operational Staff","R4009"
"Wolverhampton City Council","http://opendatacommunities.org/id/metropolitan-district-council/wolverhampton","707975","The Grafix Workshop","641","124.00","Signage and Labels","130180473","02/08/2017","Parking Services","Car Parks Operational Staff","R4009"
"Wolverhampton City Council","http://opendatacommunities.org/id/metropolitan-district-council/wolverhampton","707975","The Grafix Workshop","641","30.00","Signage and Labels","130180473","02/08/2017","Parking Services","Car Parks Operational Staff","R4009"
"Wolverhampton City Council","http://opendatacommunities.org/id/metropolitan-district-council/wolverhampton","707975","The Grafix Workshop","641","45.00","Signage and Labels","130180473","02/08/2017","Parking Services","Car Parks Operational Staff","R4009"
"Wolverhampton City Council","http://opendatacommunities.org/id/metropolitan-district-council/wolverhampton","707975","The Grafix Workshop","676","40.00","Signage and Labels","130185057","30/08/2017","Parking Services","Car Parks Operational Staff","R4009"
"Wolverhampton City Council","http://opendatacommunities.org/id/metropolitan-district-council/wolverhampton","707975","The Grafix Workshop","676","157.00","Signage and Labels","130185057","30/08/2017","Parking Services","Car Parks Operational Staff","R4009"
"Wolverhampton City Council","http://opendatacommunities.org/id/metropolitan-district-council/wolverhampton","707975","The Grafix Workshop","676","52.50","Signage and Labels","130185057","30/08/2017","Parking Services","Car Parks Operational Staff","R4009"
"Wolverhampton City Council","http://opendatacommunities.org/id/metropolitan-district-council/wolverhampton","707975","The Grafix Workshop","676","108.00","Signage and Labels","130185057","30/08/2017","Parking Services","Car Parks Operational Staff","R4009"
"Wolverhampton City Council","http://opendatacommunities.org/id/metropolitan-district-council/wolverhampton","707976","The Grange Residential Home","P148886 20081720170731","2,080.00","TPP - Residential Care - Long Term","190362227","02/08/2017","Older People Care Purchasing","OP Care Purchasing (Spot Placements)","R5400"
"Wolverhampton City Council","http://opendatacommunities.org/id/metropolitan-district-council/wolverhampton","707976","The Grange Residential Home","P151454 17091720170825","2,080.00","TPP - Residential Care - Long Term","190368433","30/08/2017","Older People Care Purchasing","OP Care Purchasing (Spot Placements)","R5400"
"Wolverhampton City Council","http://opendatacommunities.org/id/metropolitan-district-council/wolverhampton","707985","The Headset Company UK Limited","4051551","66.90","Equipment - Purchase","130183093","23/08/2017","Customer Services","City Direct","R4000"
"Wolverhampton City Council","http://opendatacommunities.org/id/metropolitan-district-council/wolverhampton","707986","The Helping Hand Company","298030","413.50","Materials","130180749","09/08/2017","Environmental Maintenance","Ground Maintenance West","R4007"
"Wolverhampton City Council","http://opendatacommunities.org/id/metropolitan-district-council/wolverhampton","707986","The Helping Hand Company","298030","926.00","Materials","130180749","09/08/2017","Environmental Maintenance","Ground Maintenance West","R4007"
"Wolverhampton City Council","http://opendatacommunities.org/id/metropolitan-district-council/wolverhampton","708013","The Law Society","DX 702433 WOLVERHAMPTON-5","120.00","Subscriptions","130182599","16/08/2017","Legal Services","Legal Services","R4701"
"Wolverhampton City Council","http://opendatacommunities.org/id/metropolitan-district-council/wolverhampton","708013","The Law Society","SIN10111624","8,000.00","Training Expenses","130185595","23/08/2017","Human Resources","Centralised Training","R1650"
"Wolverhampton City Council","http://opendatacommunities.org/id/metropolitan-district-council/wolverhampton","708027","The Lucy Faithfull Foundation","22156","544.00","Services - Professional Fees","130182996","25/08/2017","Child Protection","Head of Service - CINCP","R4400"
"Wolverhampton City Council","http://opendatacommunities.org/id/metropolitan-district-council/wolverhampton","708027","The Lucy Faithfull Foundation","22167","5,080.95","Services - Professional Fees","130184197","25/08/2017","Child Protection","CIN/CP Social Work Unit - Area 1","R4400"
"Wolverhampton City Council","http://opendatacommunities.org/id/metropolitan-district-council/wolverhampton","708027","The Lucy Faithfull Foundation","22167","-5,080.95","Services - Professional Fees","130184197","25/08/2017","Child Protection","CIN/CP Social Work Unit - Area 1","R4400"
"Wolverhampton City Council","http://opendatacommunities.org/id/metropolitan-district-council/wolverhampton","708027","The Lucy Faithfull Foundation","22167","5,080.95","Services - Professional Fees","130184197","25/08/2017","Child Protection","CIN/CP Social Work Unit - Area 1","R4400"
"Wolverhampton City Council","http://opendatacommunities.org/id/metropolitan-district-council/wolverhampton","708031","The Marlowe School","2148590","2,476.21","TPP - Alternative Provision of Education","130175572","09/08/2017","Looked After Children","Out of City - Pooled Budget","R5037"
"Wolverhampton City Council","http://opendatacommunities.org/id/metropolitan-district-council/wolverhampton","708031","The Marlowe School","2148604","2,380.97","TPP - Alternative Provision of Education","130179633","04/08/2017","Looked After Children","Out of City - Pooled Budget","R5037"
"Wolverhampton City Council","http://opendatacommunities.org/id/metropolitan-district-council/wolverhampton","708061","The Parish Centre At St Chads","Nov/000461","22.50","Room Hire","130184702","16/08/2017","Community Safety","SWP - Infrastructure","R2201"
"Wolverhampton City Council","http://opendatacommunities.org/id/metropolitan-district-council/wolverhampton","708082","The Queen Victoria Hotel","P15014920170817","462.00","TPP - Accommodation","190366064","18/08/2017","Older People Care Purchasing","OP Care Purchasing (Spot Placements)","R5603"
"Wolverhampton City Council","http://opendatacommunities.org/id/metropolitan-district-council/wolverhampton","708082","The Queen Victoria Hotel","P15014920170817","504.00","TPP - Accommodation","190366064","18/08/2017","Older People Care Purchasing","OP Care Purchasing (Spot Placements)","R5603"
"Wolverhampton City Council","http://opendatacommunities.org/id/metropolitan-district-council/wolverhampton","708082","The Queen Victoria Hotel","P15014920170817","168.00","TPP - Accommodation","190366064","18/08/2017","Older People Care Purchasing","OP Care Purchasing (Spot Placements)","R5603"
"Wolverhampton City Council","http://opendatacommunities.org/id/metropolitan-district-council/wolverhampton","708082","The Queen Victoria Hotel","P15014920170817","252.00","TPP - Accommodation","190366064","18/08/2017","Older People Care Purchasing","OP Care Purchasing (Spot Placements)","R5603"
"Wolverhampton City Council","http://opendatacommunities.org/id/metropolitan-district-council/wolverhampton","708082","The Queen Victoria Hotel","P15014920170817","42.00","TPP - Accommodation","190366064","18/08/2017","Older People Care Purchasing","OP Care Purchasing (Spot Placements)","R5603"
"Wolverhampton City Council","http://opendatacommunities.org/id/metropolitan-district-council/wolverhampton","708082","The Queen Victoria Hotel","P15014920170817","210.00","TPP - Accommodation","190366064","18/08/2017","Older People Care Purchasing","OP Care Purchasing (Spot Placements)","R5603"
"Wolverhampton City Council","http://opendatacommunities.org/id/metropolitan-district-council/wolverhampton","708082","The Queen Victoria Hotel","P15014920170817","252.00","TPP - Accommodation","190366064","18/08/2017","Older People Care Purchasing","OP Care Purchasing (Spot Placements)","R5603"
"Wolverhampton City Council","http://opendatacommunities.org/id/metropolitan-district-council/wolverhampton","708082","The Queen Victoria Hotel","P15014920170817","42.00","TPP - Accommodation","190366064","18/08/2017","Older People Care Purchasing","OP Care Purchasing (Spot Placements)","R5603"
"Wolverhampton City Council","http://opendatacommunities.org/id/metropolitan-district-council/wolverhampton","708082","The Queen Victoria Hotel","P15014920170817","168.00","TPP - Accommodation","190366064","18/08/2017","Older People Care Purchasing","OP Care Purchasing (Spot Placements)","R5603"
"Wolverhampton City Council","http://opendatacommunities.org/id/metropolitan-district-council/wolverhampton","708082","The Queen Victoria Hotel","P15014920170817","126.00","TPP - Accommodation","190366064","18/08/2017","Older People Care Purchasing","OP Care Purchasing (Spot Placements)","R5603"
"Wolverhampton City Council","http://opendatacommunities.org/id/metropolitan-district-council/wolverhampton","708082","The Queen Victoria Hotel","P15014920170817","168.00","TPP - Accommodation","190366064","18/08/2017","Older People Care Purchasing","OP Care Purchasing (Spot Placements)","R5603"
"Wolverhampton City Council","http://opendatacommunities.org/id/metropolitan-district-council/wolverhampton","708082","The Queen Victoria Hotel","P15014920170817","210.00","TPP - Accommodation","190366064","18/08/2017","Older People Care Purchasing","OP Care Purchasing (Spot Placements)","R5603"
"Wolverhampton City Council","http://opendatacommunities.org/id/metropolitan-district-council/wolverhampton","708090","The Refugee And Migrant Centre Limited","889","5,000.00","TPP - Public Health Contracts","130183294","11/08/2017","Health Protection & NHS Facing","Health Protection & NHS Facing","R5060"
"Wolverhampton City Council","http://opendatacommunities.org/id/metropolitan-district-council/wolverhampton","708090","The Refugee And Migrant Centre Limited","889","-5,000.00","TPP - Public Health Contracts","130183294","11/08/2017","Health Protection & NHS Facing","Health Protection & NHS Facing","R5060"
"Wolverhampton City Council","http://opendatacommunities.org/id/metropolitan-district-council/wolverhampton","708090","The Refugee And Migrant Centre Limited","889","5,000.00","TPP - Public Health Contracts","130183294","11/08/2017","Health Protection & NHS Facing","Health Protection & NHS Facing","R5060"
"Wolverhampton City Council","http://opendatacommunities.org/id/metropolitan-district-council/wolverhampton","708099","The Royal Wolverhampton Hospitals","0000207079","2,517.17","TPP - Payments to Local Authorities","130184198","30/08/2017","Adults Assessment & Care Management West","Hospital Team","R5100"
"Wolverhampton City Council","http://opendatacommunities.org/id/metropolitan-district-council/wolverhampton","708099","The Royal Wolverhampton Hospitals","0000206949","1,776.00","TPP - Public Health Contracts","130183480","30/08/2017","Contracts","Alcohol and Drug","R5060"
"Wolverhampton City Council","http://opendatacommunities.org/id/metropolitan-district-council/wolverhampton","708099","The Royal Wolverhampton Hospitals","0000206948","18,184.00","TPP - Public Health Contracts","130183479","30/08/2017","Contracts","LA Role in Health Protection","R5060"
"Wolverhampton City Council","http://opendatacommunities.org/id/metropolitan-district-council/wolverhampton","708099","The Royal Wolverhampton Hospitals","0000205729","141,849.00","TPP - Public Health Contracts","130179219","02/08/2017","Contracts","Children 5-19","R5060"
"Wolverhampton City Council","http://opendatacommunities.org/id/metropolitan-district-council/wolverhampton","708099","The Royal Wolverhampton Hospitals","0000206643","2,000.00","TPP - Public Health Contracts","130181939","16/08/2017","Health Protection & NHS Facing","Health Protection & NHS Facing","R5060"
"Wolverhampton City Council","http://opendatacommunities.org/id/metropolitan-district-council/wolverhampton","708099","The Royal Wolverhampton Hospitals","0000206965","8,917.00","TPP - Public Health Contracts","130183482","30/08/2017","Contracts","LA Role in Health Protection","R5060"
"Wolverhampton City Council","http://opendatacommunities.org/id/metropolitan-district-council/wolverhampton","708099","The Royal Wolverhampton Hospitals","0000206973","351,155.00","TPP - Public Health Contracts","130183483","30/08/2017","Contracts","Health Visiting 0-5 Year Olds","R5060"
"Wolverhampton City Council","http://opendatacommunities.org/id/metropolitan-district-council/wolverhampton","708099","The Royal Wolverhampton Hospitals","0000207083","2,750.00","TPP - Payments to Local Authorities","130183900","30/08/2017","Adults Assessment & Care Management West","Hospital Team","R5100"
"Wolverhampton City Council","http://opendatacommunities.org/id/metropolitan-district-council/wolverhampton","708099","The Royal Wolverhampton Hospitals","0000206910","41,434.72","TPP - Payments to Health Authorities","130183094","25/08/2017","Independent Living Service","Independent Living Service","R5101"
"Wolverhampton City Council","http://opendatacommunities.org/id/metropolitan-district-council/wolverhampton","708099","The Royal Wolverhampton Hospitals","0000206910","-41,434.72","TPP - Payments to Health Authorities","130183094","25/08/2017","Independent Living Service","Independent Living Service","R5101"
"Wolverhampton City Council","http://opendatacommunities.org/id/metropolitan-district-council/wolverhampton","708099","The Royal Wolverhampton Hospitals","0000206910","41,434.72","TPP - Payments to Health Authorities","130183094","25/08/2017","Independent Living Service","Independent Living Service","R5101"
"Wolverhampton City Council","http://opendatacommunities.org/id/metropolitan-district-council/wolverhampton","708099","The Royal Wolverhampton Hospitals","0000207081","3,882.92","TPP - Payments to Local Authorities","130184199","30/08/2017","Adults Assessment & Care Management West","Hospital Team","R5100"
"Wolverhampton City Council","http://opendatacommunities.org/id/metropolitan-district-council/wolverhampton","708099","The Royal Wolverhampton Hospitals","0000207078","2,517.17","TPP - Payments to Local Authorities","130183897","30/08/2017","Adults Assessment & Care Management West","Hospital Team","R5100"
"Wolverhampton City Council","http://opendatacommunities.org/id/metropolitan-district-council/wolverhampton","708099","The Royal Wolverhampton Hospitals","0000205838","4,238.00","TPP - Nursing Care - Long Term","130179634","02/08/2017","Older People Care Purchasing","OP Care Purchasing (Spot Placements)","R5410"
"Wolverhampton City Council","http://opendatacommunities.org/id/metropolitan-district-council/wolverhampton","708099","The Royal Wolverhampton Hospitals","0000206952","2,497.00","TPP - Public Health Contracts","130183481","30/08/2017","Contracts","Healthy Start to Life","R5060"
"Wolverhampton City Council","http://opendatacommunities.org/id/metropolitan-district-council/wolverhampton","708099","The Royal Wolverhampton Hospitals","0000207080","3,882.92","TPP - Payments to Local Authorities","130183898","30/08/2017","Adults Assessment & Care Management West","Hospital Team","R5100"
"Wolverhampton City Council","http://opendatacommunities.org/id/metropolitan-district-council/wolverhampton","708099","The Royal Wolverhampton Hospitals","0000205769","192,956.00","TPP - Public Health Contracts","130179225","09/08/2017","Contracts","Sexual Health","R5060"
"Wolverhampton City Council","http://opendatacommunities.org/id/metropolitan-district-council/wolverhampton","708121","The Stationery Office Limited","26970279","181.00","Books","130185270","18/08/2017","Strategic Organisation Development","Global Budgets","R4309"
"Wolverhampton City Council","http://opendatacommunities.org/id/metropolitan-district-council/wolverhampton","708134","The Terrence Higgins Trust","29002782","8,332.50","TPP - Home Care","130183095","25/08/2017","Head of Commissioning","Terence Higgins Trust","R5420"
"Wolverhampton City Council","http://opendatacommunities.org/id/metropolitan-district-council/wolverhampton","708176","Thompson Avc Limited","32841","12,570.00","Computing - Purchase of Hardware","130180477","02/08/2017","ICTS","Strategic ICTS (ICT Service Budget)","R4530"
"Wolverhampton City Council","http://opendatacommunities.org/id/metropolitan-district-council/wolverhampton","708176","Thompson Avc Limited","32869","189.00","R&M - Departmental planned (external)","130182269","09/08/2017","Facilities Management","Culwell Street Depot","R2001"
"Wolverhampton City Council","http://opendatacommunities.org/id/metropolitan-district-council/wolverhampton","708177","Thompson Solicitors","Payment in respect of settlement of claimants costs","3,300.00","Insurance - General","190365026","16/08/2017","Audit Services","Legal Liability","R4962"
"Wolverhampton City Council","http://opendatacommunities.org/id/metropolitan-district-council/wolverhampton","708180","Thornes Legal Limited","DW/OFA1/1/006882","250.00","Services - Professional Fees","190366652","23/08/2017","Legal Services","Centralised External Legal Costs","R4400"
"Wolverhampton City Council","http://opendatacommunities.org/id/metropolitan-district-council/wolverhampton","708180","Thornes Legal Limited","DW/OFA1/1-006882","250.00","Services - Professional Fees","190362387","02/08/2017","Legal Services","Centralised External Legal Costs","R4400"
"Wolverhampton City Council","http://opendatacommunities.org/id/metropolitan-district-council/wolverhampton","708185","Three Pines Building Co Limited","15/0246/DFG","3,941.27","Grants paid out","190363882","09/08/2017","-","Disabled Facilities Grants","C5000"
"Wolverhampton City Council","http://opendatacommunities.org/id/metropolitan-district-council/wolverhampton","708198","Time Right Limited","S1N067961","30.00","Services - Fees and Charges","130183901","25/08/2017","Environmental Maintenance","Ground Maintenance East","R4401"
"Wolverhampton City Council","http://opendatacommunities.org/id/metropolitan-district-council/wolverhampton","708202","TES Global Ltd","INVTES00036665","1,093.75","Staff Advertising Costs","130181560","09/08/2017","Director of Education","Director of Education","R1700"
"Wolverhampton City Council","http://opendatacommunities.org/id/metropolitan-district-council/wolverhampton","708202","TES Global Ltd","INVTES00036664","690.37","Staff Advertising Costs","130181438","02/08/2017","Standards and Vulnerable Pupils","School Improvement","R1700"
"Wolverhampton City Council","http://opendatacommunities.org/id/metropolitan-district-council/wolverhampton","708216","Tlc College","0163","1,300.00","Services - Professional Fees","130182126","16/08/2017","Skills","Employment Programmes","R4400"
"Wolverhampton City Council","http://opendatacommunities.org/id/metropolitan-district-council/wolverhampton","708233","Tony Davies & Partner Llp","5101/17AFP","1,227.72","R&M - Departmental planned (external)","130185271","25/08/2017","Maintenance Programme","Centralised R&M","R2001"
"Wolverhampton City Council","http://opendatacommunities.org/id/metropolitan-district-council/wolverhampton","708233","Tony Davies & Partner Llp","5089/17AFP","2,628.16","Construction and Conversion","130182997","23/08/2017","-","Corporate Asset Management","C1100"
"Wolverhampton City Council","http://opendatacommunities.org/id/metropolitan-district-council/wolverhampton","708233","Tony Davies & Partner Llp","5066/17AFP","2,325.74","Construction and Conversion","130180481","02/08/2017","-","Corporate Asset Management","C1100"
"Wolverhampton City Council","http://opendatacommunities.org/id/metropolitan-district-council/wolverhampton","708251","Total Gas & Power Limited","154323636","155.23","Gas","190365631","18/08/2017","Schools","Bilston Nursery","R2101"
"Wolverhampton City Council","http://opendatacommunities.org/id/metropolitan-district-council/wolverhampton","708251","Total Gas & Power Limited","154324417","37.55","Gas","190365709","18/08/2017","Corporate Asset Management","Central Utilities to Recharge","R2101"
"Wolverhampton City Council","http://opendatacommunities.org/id/metropolitan-district-council/wolverhampton","708251","Total Gas & Power Limited","154323889","1,305.94","Gas","190365656","18/08/2017","Corporate Asset Management","Central Utilities to Recharge","R2101"
"Wolverhampton City Council","http://opendatacommunities.org/id/metropolitan-district-council/wolverhampton","708251","Total Gas & Power Limited","153188579","146.97","Gas","190365551","18/08/2017","Facilities Management","Management of Vacant Properties","R2101"
"Wolverhampton City Council","http://opendatacommunities.org/id/metropolitan-district-council/wolverhampton","708251","Total Gas & Power Limited","154068700","144.79","Gas","190365593","18/08/2017","Schools","Uplands Junior School","R2101"
"Wolverhampton City Council","http://opendatacommunities.org/id/metropolitan-district-council/wolverhampton","708251","Total Gas & Power Limited","154068887","1,294.60","Gas","190365611","18/08/2017","Corporate Asset Management","Central Utilities to Recharge","R2101"
"Wolverhampton City Council","http://opendatacommunities.org/id/metropolitan-district-council/wolverhampton","708251","Total Gas & Power Limited","154324351","39.16","Gas","190365703","18/08/2017","Corporate Asset Management","Central Utilities to Recharge","R2101"
"Wolverhampton City Council","http://opendatacommunities.org/id/metropolitan-district-council/wolverhampton","708251","Total Gas & Power Limited","154068964","150.10","Gas","190365619","18/08/2017","Corporate Asset Management","Central Utilities to Recharge","R2101"
"Wolverhampton City Council","http://opendatacommunities.org/id/metropolitan-district-council/wolverhampton","708251","Total Gas & Power Limited","154323856","150.81","Gas","190365653","18/08/2017","Corporate Asset Management","Central Utilities to Recharge","R2101"
"Wolverhampton City Council","http://opendatacommunities.org/id/metropolitan-district-council/wolverhampton","708251","Total Gas & Power Limited","154324538","4,140.26","Gas","190365721","18/08/2017","Corporate Asset Management","Central Utilities to Recharge","R2101"
"Wolverhampton City Council","http://opendatacommunities.org/id/metropolitan-district-council/wolverhampton","708251","Total Gas & Power Limited","154324945","39.16","Gas","190365761","18/08/2017","Corporate Asset Management","Central Utilities to Recharge","R2101"
"Wolverhampton City Council","http://opendatacommunities.org/id/metropolitan-district-council/wolverhampton","708251","Total Gas & Power Limited","154325110","32.62","Gas","190365775","18/08/2017","Schools","Wood End Primary School","R2101"
"Wolverhampton City Council","http://opendatacommunities.org/id/metropolitan-district-council/wolverhampton","708251","Total Gas & Power Limited","154324461","29.66","Gas","190365714","18/08/2017","Schools","Bilston Church of England Primary School","R2101"
"Wolverhampton City Council","http://opendatacommunities.org/id/metropolitan-district-council/wolverhampton","708251","Total Gas & Power Limited","149666379C","-2,756.67","Gas","190365556","18/08/2017","Corporate Asset Management","Central Utilities to Recharge","R2101"
"Wolverhampton City Council","http://opendatacommunities.org/id/metropolitan-district-council/wolverhampton","708251","Total Gas & Power Limited","154323780","142.51","Gas","190365646","18/08/2017","Corporate Asset Management","Central Utilities to Recharge","R2101"
"Wolverhampton City Council","http://opendatacommunities.org/id/metropolitan-district-council/wolverhampton","708251","Total Gas & Power Limited","154323735","26.46","Gas","190365641","18/08/2017","Facilities Management","Management of Vacant Properties","R2101"
"Wolverhampton City Council","http://opendatacommunities.org/id/metropolitan-district-council/wolverhampton","708251","Total Gas & Power Limited","154324186","28.01","Gas","190365686","18/08/2017","Schools","Trinity Church of England Primary School","R2101"
"Wolverhampton City Council","http://opendatacommunities.org/id/metropolitan-district-council/wolverhampton","708251","Total Gas & Power Limited","154324076","26.04","Gas","190365675","18/08/2017","Corporate Asset Management","Central Utilities to Recharge","R2101"
"Wolverhampton City Council","http://opendatacommunities.org/id/metropolitan-district-council/wolverhampton","708251","Total Gas & Power Limited","154324802","50.18","Gas","190365748","18/08/2017","Schools","Christ Church (Church of England) Junior School","R2101"
"Wolverhampton City Council","http://opendatacommunities.org/id/metropolitan-district-council/wolverhampton","708251","Total Gas & Power Limited","154325320","141.88","Gas","190365796","18/08/2017","Corporate Asset Management","Central Utilities to Recharge","R2101"
"Wolverhampton City Council","http://opendatacommunities.org/id/metropolitan-district-council/wolverhampton","708251","Total Gas & Power Limited","154325297","26.04","Gas","190365793","18/08/2017","Schools","Trinity Church of England Primary School","R2101"
"Wolverhampton City Council","http://opendatacommunities.org/id/metropolitan-district-council/wolverhampton","708251","Total Gas & Power Limited","154068590","342.49","Gas","190365582","18/08/2017","Schools","Dovecotes Primary School","R2101"
"Wolverhampton City Council","http://opendatacommunities.org/id/metropolitan-district-council/wolverhampton","708251","Total Gas & Power Limited","154068612","201.14","Gas","190365584","18/08/2017","Corporate Asset Management","Central Utilities to Recharge","R2101"
"Wolverhampton City Council","http://opendatacommunities.org/id/metropolitan-district-council/wolverhampton","708251","Total Gas & Power Limited","154324395","44.75","Gas","190365707","18/08/2017","Corporate Asset Management","Central Utilities to Recharge","R2101"
"Wolverhampton City Council","http://opendatacommunities.org/id/metropolitan-district-council/wolverhampton","708251","Total Gas & Power Limited","154324483","85.03","Gas","190365716","18/08/2017","Corporate Asset Management","Central Utilities to Recharge","R2101"
"Wolverhampton City Council","http://opendatacommunities.org/id/metropolitan-district-council/wolverhampton","708251","Total Gas & Power Limited","154324362","41.00","Gas","190365704","18/08/2017","Schools","Ashmore Park Nursery","R2101"
"Wolverhampton City Council","http://opendatacommunities.org/id/metropolitan-district-council/wolverhampton","708251","Total Gas & Power Limited","154323691","46.95","Gas","190365637","18/08/2017","Corporate Asset Management","Central Utilities to Recharge","R2101"
"Wolverhampton City Council","http://opendatacommunities.org/id/metropolitan-district-council/wolverhampton","708251","Total Gas & Power Limited","154324428","49.19","Gas","190365710","18/08/2017","Corporate Asset Management","Central Utilities to Recharge","R2101"
"Wolverhampton City Council","http://opendatacommunities.org/id/metropolitan-district-council/wolverhampton","708251","Total Gas & Power Limited","154324340","39.16","Gas","190365702","18/08/2017","Corporate Asset Management","Central Utilities to Recharge","R2101"
"Wolverhampton City Council","http://opendatacommunities.org/id/metropolitan-district-council/wolverhampton","708251","Total Gas & Power Limited","154324747","41.95","Gas","190365742","18/08/2017","Schools","Penn Hall Special School","R2101"
"Wolverhampton City Council","http://opendatacommunities.org/id/metropolitan-district-council/wolverhampton","708251","Total Gas & Power Limited","154325210","39.98","Gas","190365785","18/08/2017","Corporate Asset Management","Central Utilities to Recharge","R2101"
"Wolverhampton City Council","http://opendatacommunities.org/id/metropolitan-district-council/wolverhampton","708251","Total Gas & Power Limited","154324065","39.16","Gas","190365674","18/08/2017","Facilities Management","Management of Vacant Properties","R2101"
"Wolverhampton City Council","http://opendatacommunities.org/id/metropolitan-district-council/wolverhampton","708251","Total Gas & Power Limited","154324175","39.16","Gas","190365685","18/08/2017","Corporate Asset Management","Central Utilities to Recharge","R2101"
"Wolverhampton City Council","http://opendatacommunities.org/id/metropolitan-district-council/wolverhampton","708251","Total Gas & Power Limited","154324879","195.02","Gas","190365754","18/08/2017","Schools","Woodthorne Primary School","R2101"
"Wolverhampton City Council","http://opendatacommunities.org/id/metropolitan-district-council/wolverhampton","708251","Total Gas & Power Limited","154325341","43.63","Gas","190365798","18/08/2017","Schools","St Luke�s Church of England Aided Primary School","R2101"
"Wolverhampton City Council","http://opendatacommunities.org/id/metropolitan-district-council/wolverhampton","708251","Total Gas & Power Limited","154068470","931.19","Gas","190365570","18/08/2017","Corporate Asset Management","Central Utilities to Recharge","R2101"
"Wolverhampton City Council","http://opendatacommunities.org/id/metropolitan-district-council/wolverhampton","708251","Total Gas & Power Limited","150857074C","-316.07","Gas","190365559","18/08/2017","Corporate Asset Management","Central Utilities to Recharge","R2101"
"Wolverhampton City Council","http://opendatacommunities.org/id/metropolitan-district-council/wolverhampton","708251","Total Gas & Power Limited","154324550","291.77","Gas","190365723","18/08/2017","Corporate Asset Management","Central Utilities to Recharge","R2101"
"Wolverhampton City Council","http://opendatacommunities.org/id/metropolitan-district-council/wolverhampton","708251","Total Gas & Power Limited","154069030","279.17","Gas","190365626","18/08/2017","Corporate Asset Management","Central Utilities to Recharge","R2101"
"Wolverhampton City Council","http://opendatacommunities.org/id/metropolitan-district-council/wolverhampton","708251","Total Gas & Power Limited","152443065C","-25.20","Gas","190365560","18/08/2017","Corporate Asset Management","Central Utilities to Recharge","R2101"
"Wolverhampton City Council","http://opendatacommunities.org/id/metropolitan-district-council/wolverhampton","708251","Total Gas & Power Limited","153358012","268.17","Gas","190365565","18/08/2017","Corporate Asset Management","Central Utilities to Recharge","R2101"
"Wolverhampton City Council","http://opendatacommunities.org/id/metropolitan-district-council/wolverhampton","708251","Total Gas & Power Limited","147055595C","-56.22","Gas","190365547","18/08/2017","Facilities Management","Management of Vacant Properties","R2101"
"Wolverhampton City Council","http://opendatacommunities.org/id/metropolitan-district-council/wolverhampton","708251","Total Gas & Power Limited","154323670","463.07","Gas","190365635","18/08/2017","Corporate Asset Management","Central Utilities to Recharge","R2101"
"Wolverhampton City Council","http://opendatacommunities.org/id/metropolitan-district-council/wolverhampton","708251","Total Gas & Power Limited","154323834","109.54","Gas","190365651","18/08/2017","Corporate Asset Management","Central Utilities to Recharge","R2101"
"Wolverhampton City Council","http://opendatacommunities.org/id/metropolitan-district-council/wolverhampton","708251","Total Gas & Power Limited","154323911","375.99","Gas","190365659","18/08/2017","Corporate Asset Management","Central Utilities to Recharge","R2101"
"Wolverhampton City Council","http://opendatacommunities.org/id/metropolitan-district-council/wolverhampton","708251","Total Gas & Power Limited","154324131","53.59","Gas","190365681","18/08/2017","Corporate Asset Management","Central Utilities to Recharge","R2101"
"Wolverhampton City Council","http://opendatacommunities.org/id/metropolitan-district-council/wolverhampton","708251","Total Gas & Power Limited","154324670","52.51","Gas","190365735","18/08/2017","Corporate Asset Management","Central Utilities to Recharge","R2101"
"Wolverhampton City Council","http://opendatacommunities.org/id/metropolitan-district-council/wolverhampton","708251","Total Gas & Power Limited","154324835","55.60","Gas","190365751","18/08/2017","Schools","Stowheath Primary School","R2101"
"Wolverhampton City Council","http://opendatacommunities.org/id/metropolitan-district-council/wolverhampton","708251","Total Gas & Power Limited","154324813","57.57","Gas","190365749","18/08/2017","Schools","Merridale Primary School","R2101"
"Wolverhampton City Council","http://opendatacommunities.org/id/metropolitan-district-council/wolverhampton","708251","Total Gas & Power Limited","154324164","66.63","Gas","190365684","18/08/2017","Corporate Asset Management","Central Utilities to Recharge","R2101"
"Wolverhampton City Council","http://opendatacommunities.org/id/metropolitan-district-council/wolverhampton","708251","Total Gas & Power Limited","154324901","223.33","Gas","190365757","18/08/2017","Corporate Asset Management","Central Utilities to Recharge","R2101"
"Wolverhampton City Council","http://opendatacommunities.org/id/metropolitan-district-council/wolverhampton","708251","Total Gas & Power Limited","154324912","122.24","Gas","190365758","18/08/2017","Corporate Asset Management","Central Utilities to Recharge","R2101"
"Wolverhampton City Council","http://opendatacommunities.org/id/metropolitan-district-council/wolverhampton","708251","Total Gas & Power Limited","154325187","114.46","Gas","190365782","18/08/2017","Corporate Asset Management","Central Utilities to Recharge","R2101"
"Wolverhampton City Council","http://opendatacommunities.org/id/metropolitan-district-council/wolverhampton","708251","Total Gas & Power Limited","TGP0082-3004740321","32.91","Electricity","190365265","16/08/2017","Housing Revenue Account","Hostels / Outreach","R2100"
"Wolverhampton City Council","http://opendatacommunities.org/id/metropolitan-district-council/wolverhampton","708251","Total Gas & Power Limited","TGP0087-3004746558","130.98","Electricity","190365270","16/08/2017","Housing Revenue Account","Hostels / Outreach","R2100"
"Wolverhampton City Council","http://opendatacommunities.org/id/metropolitan-district-council/wolverhampton","708251","Total Gas & Power Limited","TGP0083-3004742818","246.39","Electricity","190365266","16/08/2017","Housing Revenue Account","Hostels / Outreach","R2100"
"Wolverhampton City Council","http://opendatacommunities.org/id/metropolitan-district-council/wolverhampton","708251","Total Gas & Power Limited","TGP0025-3004746734","267.23","Electricity","190368722","30/08/2017","Housing Revenue Account","Hostels / Outreach","R2100"
"Wolverhampton City Council","http://opendatacommunities.org/id/metropolitan-district-council/wolverhampton","708251","Total Gas & Power Limited","TGP0030-3004742928","463.79","Electricity","190368727","30/08/2017","Housing Revenue Account","Hostels / Outreach","R2100"
"Wolverhampton City Council","http://opendatacommunities.org/id/metropolitan-district-council/wolverhampton","708251","Total Gas & Power Limited","TGP0028-3004746558","408.91","Electricity","190368725","30/08/2017","Housing Revenue Account","Hostels / Outreach","R2100"
"Wolverhampton City Council","http://opendatacommunities.org/id/metropolitan-district-council/wolverhampton","708251","Total Gas & Power Limited","154068502","37.55","Gas","190365573","18/08/2017","Corporate Asset Management","Central Utilities to Recharge","R2101"
"Wolverhampton City Council","http://opendatacommunities.org/id/metropolitan-district-council/wolverhampton","708251","Total Gas & Power Limited","154068920","160.48","Gas","190365615","18/08/2017","Schools","West Park Primary School","R2101"
"Wolverhampton City Council","http://opendatacommunities.org/id/metropolitan-district-council/wolverhampton","708251","Total Gas & Power Limited","154068942","174.73","Gas","190365617","18/08/2017","Schools","Lanesfield Primary School","R2101"
"Wolverhampton City Council","http://opendatacommunities.org/id/metropolitan-district-council/wolverhampton","708251","Total Gas & Power Limited","154324527","35.25","Gas","190365720","18/08/2017","Corporate Asset Management","Central Utilities to Recharge","R2101"
"Wolverhampton City Council","http://opendatacommunities.org/id/metropolitan-district-council/wolverhampton","708251","Total Gas & Power Limited","154068568","125.31","Gas","190365579","18/08/2017","Schools","St Thomas� Church of England Primary School","R2101"
"Wolverhampton City Council","http://opendatacommunities.org/id/metropolitan-district-council/wolverhampton","708251","Total Gas & Power Limited","154068667","112.47","Gas","190365589","18/08/2017","Schools","D�Eyncourt Primary School","R2101"
"Wolverhampton City Council","http://opendatacommunities.org/id/metropolitan-district-council/wolverhampton","708251","Total Gas & Power Limited","154323757","139.35","Gas","190365643","18/08/2017","Corporate Asset Management","Central Utilities to Recharge","R2101"
"Wolverhampton City Council","http://opendatacommunities.org/id/metropolitan-district-council/wolverhampton","708251","Total Gas & Power Limited","154068931","109.54","Gas","190365616","18/08/2017","Schools","St Anthony�s Catholic Primary School","R2101"
"Wolverhampton City Council","http://opendatacommunities.org/id/metropolitan-district-council/wolverhampton","708251","Total Gas & Power Limited","154323955","129.52","Gas","190365663","18/08/2017","Corporate Asset Management","Central Utilities to Recharge","R2101"
"Wolverhampton City Council","http://opendatacommunities.org/id/metropolitan-district-council/wolverhampton","708251","Total Gas & Power Limited","154323999","130.99","Gas","190365667","18/08/2017","Corporate Asset Management","Central Utilities to Recharge","R2101"
"Wolverhampton City Council","http://opendatacommunities.org/id/metropolitan-district-council/wolverhampton","708251","Total Gas & Power Limited","152545145","311.61","Gas","190365803","18/08/2017","Corporate Asset Management","Central Utilities to Recharge","R2101"
"Wolverhampton City Council","http://opendatacommunities.org/id/metropolitan-district-council/wolverhampton","708251","Total Gas & Power Limited","152863639","21.72","Electricity","190366840","23/08/2017","Corporate Asset Management","Central Utilities to Recharge","R2100"
"Wolverhampton City Council","http://opendatacommunities.org/id/metropolitan-district-council/wolverhampton","708251","Total Gas & Power Limited","152864310","210.31","Electricity","190366847","23/08/2017","Corporate Asset Management","Central Utilities to Recharge","R2100"
"Wolverhampton City Council","http://opendatacommunities.org/id/metropolitan-district-council/wolverhampton","708251","Total Gas & Power Limited","152878742","16.24","Electricity","190366933","23/08/2017","Corporate Asset Management","Central Utilities to Recharge","R2100"
"Wolverhampton City Council","http://opendatacommunities.org/id/metropolitan-district-council/wolverhampton","708251","Total Gas & Power Limited","152884781","1,337.55","Electricity","190366963","23/08/2017","Corporate Asset Management","Central Utilities to Recharge","R2100"
"Wolverhampton City Council","http://opendatacommunities.org/id/metropolitan-district-council/wolverhampton","708251","Total Gas & Power Limited","152863221","105.89","Electricity","190366829","23/08/2017","Corporate Asset Management","Central Utilities to Recharge","R2100"
"Wolverhampton City Council","http://opendatacommunities.org/id/metropolitan-district-council/wolverhampton","708251","Total Gas & Power Limited","152873352","31.76","Electricity","190366866","23/08/2017","Corporate Asset Management","Central Utilities to Recharge","R2100"
"Wolverhampton City Council","http://opendatacommunities.org/id/metropolitan-district-council/wolverhampton","708251","Total Gas & Power Limited","152884760","1,824.54","Electricity","190366961","23/08/2017","Corporate Asset Management","Central Utilities to Recharge","R2100"
"Wolverhampton City Council","http://opendatacommunities.org/id/metropolitan-district-council/wolverhampton","708251","Total Gas & Power Limited","152884770","1,139.44","Electricity","190366962","23/08/2017","Corporate Asset Management","Central Utilities to Recharge","R2100"
"Wolverhampton City Council","http://opendatacommunities.org/id/metropolitan-district-council/wolverhampton","708251","Total Gas & Power Limited","152874199","202.35","Electricity","190366887","23/08/2017","Corporate Asset Management","Central Utilities to Recharge","R2100"
"Wolverhampton City Council","http://opendatacommunities.org/id/metropolitan-district-council/wolverhampton","708251","Total Gas & Power Limited","152873539","10.05","Electricity","190366872","23/08/2017","Corporate Asset Management","Central Utilities to Recharge","R2100"
"Wolverhampton City Council","http://opendatacommunities.org/id/metropolitan-district-council/wolverhampton","708251","Total Gas & Power Limited","152863386","3.97","Electricity","190366833","23/08/2017","Corporate Asset Management","Central Utilities to Recharge","R2100"
"Wolverhampton City Council","http://opendatacommunities.org/id/metropolitan-district-council/wolverhampton","708251","Total Gas & Power Limited","152935128","355.61","Electricity","190367013","23/08/2017","Corporate Asset Management","Central Utilities to Recharge","R2100"
"Wolverhampton City Council","http://opendatacommunities.org/id/metropolitan-district-council/wolverhampton","708251","Total Gas & Power Limited","152864332","454.68","Electricity","190366848","23/08/2017","Schools","St Thomas� Church of England Primary School","R2100"
"Wolverhampton City Council","http://opendatacommunities.org/id/metropolitan-district-council/wolverhampton","708251","Total Gas & Power Limited","152935964","188.53","Electricity","190367056","23/08/2017","Corporate Asset Management","Central Utilities to Recharge","R2100"
"Wolverhampton City Council","http://opendatacommunities.org/id/metropolitan-district-council/wolverhampton","708251","Total Gas & Power Limited","152935381","17.96","Electricity","190367022","23/08/2017","Corporate Asset Management","Central Utilities to Recharge","R2100"
"Wolverhampton City Council","http://opendatacommunities.org/id/metropolitan-district-council/wolverhampton","708251","Total Gas & Power Limited","152884924","1,381.61","Electricity","190366975","23/08/2017","Corporate Asset Management","Central Utilities to Recharge","R2100"
"Wolverhampton City Council","http://opendatacommunities.org/id/metropolitan-district-council/wolverhampton","708251","Total Gas & Power Limited","152884858","855.81","Electricity","190366969","23/08/2017","Facilities Management","Management of Vacant Properties","R2100"
"Wolverhampton City Council","http://opendatacommunities.org/id/metropolitan-district-council/wolverhampton","708251","Total Gas & Power Limited","152873781","237.88","Electricity","190366877","23/08/2017","Transportation","Bridges & Subways","R2100"
"Wolverhampton City Council","http://opendatacommunities.org/id/metropolitan-district-council/wolverhampton","708251","Total Gas & Power Limited","152873814","824.62","Electricity","190366878","23/08/2017","Schools","Wodensfield Primary School","R2100"
"Wolverhampton City Council","http://opendatacommunities.org/id/metropolitan-district-council/wolverhampton","708251","Total Gas & Power Limited","152873935","86.72","Electricity","190366879","23/08/2017","Schools","Christ Church (Tettenhall Wood) Infant School","R2100"
"Wolverhampton City Council","http://opendatacommunities.org/id/metropolitan-district-council/wolverhampton","708251","Total Gas & Power Limited","152884869","2,732.04","Electricity","190366970","23/08/2017","Corporate Asset Management","Central Utilities to Recharge","R2100"
"Wolverhampton City Council","http://opendatacommunities.org/id/metropolitan-district-council/wolverhampton","708251","Total Gas & Power Limited","152872846","695.27","Electricity","190366854","23/08/2017","Schools","West Park Primary School","R2100"
"Wolverhampton City Council","http://opendatacommunities.org/id/metropolitan-district-council/wolverhampton","708251","Total Gas & Power Limited","152884847","36,871.19","Electricity","190366968","23/08/2017","Corporate Asset Management","Central Utilities to Recharge","R2100"
"Wolverhampton City Council","http://opendatacommunities.org/id/metropolitan-district-council/wolverhampton","708251","Total Gas & Power Limited","152857941","69.04","Electricity","190366809","23/08/2017","Corporate Asset Management","Central Utilities to Recharge","R2100"
"Wolverhampton City Council","http://opendatacommunities.org/id/metropolitan-district-council/wolverhampton","708251","Total Gas & Power Limited","152877037","78.24","Electricity","190366900","23/08/2017","Corporate Asset Management","Central Utilities to Recharge","R2100"
"Wolverhampton City Council","http://opendatacommunities.org/id/metropolitan-district-council/wolverhampton","708251","Total Gas & Power Limited","152857820","62.71","Electricity","190366806","23/08/2017","Corporate Asset Management","Central Utilities to Recharge","R2100"
"Wolverhampton City Council","http://opendatacommunities.org/id/metropolitan-district-council/wolverhampton","708251","Total Gas & Power Limited","152885122","157.86","Electricity","190366981","23/08/2017","Corporate Asset Management","Central Utilities to Recharge","R2100"
"Wolverhampton City Council","http://opendatacommunities.org/id/metropolitan-district-council/wolverhampton","708251","Total Gas & Power Limited","152874420","96.68","Electricity","190366896","23/08/2017","Corporate Asset Management","Central Utilities to Recharge","R2100"
"Wolverhampton City Council","http://opendatacommunities.org/id/metropolitan-district-council/wolverhampton","708251","Total Gas & Power Limited","152857809","77.36","Electricity","190366805","23/08/2017","Corporate Asset Management","Central Utilities to Recharge","R2100"
"Wolverhampton City Council","http://opendatacommunities.org/id/metropolitan-district-council/wolverhampton","708251","Total Gas & Power Limited","152885023","25.00","Electricity","190366979","23/08/2017","Corporate Asset Management","Central Utilities to Recharge","R2100"
"Wolverhampton City Council","http://opendatacommunities.org/id/metropolitan-district-council/wolverhampton","708251","Total Gas & Power Limited","152885012","74.02","Electricity","190366978","23/08/2017","Corporate Asset Management","Central Utilities to Recharge","R2100"
"Wolverhampton City Council","http://opendatacommunities.org/id/metropolitan-district-council/wolverhampton","708251","Total Gas & Power Limited","152876938","54.92","Electricity","190366897","23/08/2017","Corporate Asset Management","Central Utilities to Recharge","R2100"
"Wolverhampton City Council","http://opendatacommunities.org/id/metropolitan-district-council/wolverhampton","708251","Total Gas & Power Limited","152885530","212.90","Electricity","190366989","23/08/2017","Corporate Asset Management","Central Utilities to Recharge","R2100"
"Wolverhampton City Council","http://opendatacommunities.org/id/metropolitan-district-council/wolverhampton","708251","Total Gas & Power Limited","152885661","432.74","Electricity","190366993","23/08/2017","Schools","Bantock Primary School","R2100"
"Wolverhampton City Council","http://opendatacommunities.org/id/metropolitan-district-council/wolverhampton","708251","Total Gas & Power Limited","152857985","142.20","Electricity","190366811","23/08/2017","Housing Revenue Account","Amounts to be Settled with Wolverhampton Homes","R2100"
"Wolverhampton City Council","http://opendatacommunities.org/id/metropolitan-district-council/wolverhampton","708251","Total Gas & Power Limited","152858018","579.58","Electricity","190366812","23/08/2017","Schools","Holy Trinity Catholic Primary School","R2100"
"Wolverhampton City Council","http://opendatacommunities.org/id/metropolitan-district-council/wolverhampton","708251","Total Gas & Power Limited","152877169","25.85","Electricity","190366902","23/08/2017","Corporate Asset Management","Central Utilities to Recharge","R2100"
"Wolverhampton City Council","http://opendatacommunities.org/id/metropolitan-district-council/wolverhampton","708251","Total Gas & Power Limited","152935557","683.66","Electricity","190367038","23/08/2017","Schools","St Anthony�s Catholic Primary School","R2100"
"Wolverhampton City Council","http://opendatacommunities.org/id/metropolitan-district-council/wolverhampton","708251","Total Gas & Power Limited","152879171","18.94","Electricity","190366945","23/08/2017","Corporate Asset Management","Central Utilities to Recharge","R2100"
"Wolverhampton City Council","http://opendatacommunities.org/id/metropolitan-district-council/wolverhampton","708251","Total Gas & Power Limited","152935634","1,746.96","Electricity","190367042","23/08/2017","Corporate Asset Management","Central Utilities to Recharge","R2100"
"Wolverhampton City Council","http://opendatacommunities.org/id/metropolitan-district-council/wolverhampton","708251","Total Gas & Power Limited","152877422","20.12","Electricity","190366907","23/08/2017","Corporate Asset Management","Central Utilities to Recharge","R2100"
"Wolverhampton City Council","http://opendatacommunities.org/id/metropolitan-district-council/wolverhampton","708251","Total Gas & Power Limited","152879314","36.54","Electricity","190366948","23/08/2017","Corporate Asset Management","Central Utilities to Recharge","R2100"
"Wolverhampton City Council","http://opendatacommunities.org/id/metropolitan-district-council/wolverhampton","708251","Total Gas & Power Limited","152873121","549.89","Electricity","190366860","23/08/2017","Corporate Asset Management","Central Utilities to Recharge","R2100"
"Wolverhampton City Council","http://opendatacommunities.org/id/metropolitan-district-council/wolverhampton","708251","Total Gas & Power Limited","152862847","197.63","Electricity","190366820","23/08/2017","Corporate Asset Management","Central Utilities to Recharge","R2100"
"Wolverhampton City Council","http://opendatacommunities.org/id/metropolitan-district-council/wolverhampton","708251","Total Gas & Power Limited","152884616","962.42","Electricity","190366951","23/08/2017","Corporate Asset Management","Central Utilities to Recharge","R2100"
"Wolverhampton City Council","http://opendatacommunities.org/id/metropolitan-district-council/wolverhampton","708251","Total Gas & Power Limited","152934787","58.68","Electricity","190367007","23/08/2017","Corporate Asset Management","Central Utilities to Recharge","R2100"
"Wolverhampton City Council","http://opendatacommunities.org/id/metropolitan-district-council/wolverhampton","708251","Total Gas & Power Limited","152935898","512.35","Electricity","190367051","23/08/2017","Corporate Asset Management","Central Utilities to Recharge","R2100"
"Wolverhampton City Council","http://opendatacommunities.org/id/metropolitan-district-council/wolverhampton","708251","Total Gas & Power Limited","152877730","19.44","Electricity","190366909","23/08/2017","Corporate Asset Management","Central Utilities to Recharge","R2100"
"Wolverhampton City Council","http://opendatacommunities.org/id/metropolitan-district-council/wolverhampton","708251","Total Gas & Power Limited","152935876","144.54","Electricity","190367050","23/08/2017","Corporate Asset Management","Central Utilities to Recharge","R2100"
"Wolverhampton City Council","http://opendatacommunities.org/id/metropolitan-district-council/wolverhampton","708251","Total Gas & Power Limited","152935854","424.88","Electricity","190367049","23/08/2017","Corporate Asset Management","Central Utilities to Recharge","R2100"
"Wolverhampton City Council","http://opendatacommunities.org/id/metropolitan-district-council/wolverhampton","708251","Total Gas & Power Limited","152873341","41.04","Electricity","190366865","23/08/2017","Corporate Asset Management","Central Utilities to Recharge","R2100"
"Wolverhampton City Council","http://opendatacommunities.org/id/metropolitan-district-council/wolverhampton","708251","Total Gas & Power Limited","152878269","757.83","Electricity","190366920","23/08/2017","Schools","St Stephen�s Church of England Primary School","R2100"
"Wolverhampton City Council","http://opendatacommunities.org/id/metropolitan-district-council/wolverhampton","708251","Total Gas & Power Limited","152878270","17.21","Electricity","190366921","23/08/2017","Corporate Asset Management","Central Utilities to Recharge","R2100"
"Wolverhampton City Council","http://opendatacommunities.org/id/metropolitan-district-council/wolverhampton","708251","Total Gas & Power Limited","152878160","164.43","Electricity","190366917","23/08/2017","Corporate Asset Management","Central Utilities to Recharge","R2100"
"Wolverhampton City Council","http://opendatacommunities.org/id/metropolitan-district-council/wolverhampton","708251","Total Gas & Power Limited","152884759","166.02","Electricity","190366960","23/08/2017","Corporate Asset Management","Central Utilities to Recharge","R2100"
"Wolverhampton City Council","http://opendatacommunities.org/id/metropolitan-district-council/wolverhampton","708251","Total Gas & Power Limited","152873540","56.39","Electricity","190366873","23/08/2017","Corporate Asset Management","Central Utilities to Recharge","R2100"
"Wolverhampton City Council","http://opendatacommunities.org/id/metropolitan-district-council/wolverhampton","708251","Total Gas & Power Limited","152884748","438.72","Electricity","190366959","23/08/2017","Corporate Asset Management","Central Utilities to Recharge","R2100"
"Wolverhampton City Council","http://opendatacommunities.org/id/metropolitan-district-council/wolverhampton","708251","Total Gas & Power Limited","152878104","60.67","Electricity","190366916","23/08/2017","Schools","Trinity Church of England Primary School","R2100"
"Wolverhampton City Council","http://opendatacommunities.org/id/metropolitan-district-council/wolverhampton","708251","Total Gas & Power Limited","152862693","556.34","Electricity","190366817","23/08/2017","Schools","Lanesfield Primary School","R2100"
"Wolverhampton City Council","http://opendatacommunities.org/id/metropolitan-district-council/wolverhampton","708251","Total Gas & Power Limited","152873561","31.32","Electricity","190366875","23/08/2017","Corporate Asset Management","Central Utilities to Recharge","R2100"
"Wolverhampton City Council","http://opendatacommunities.org/id/metropolitan-district-council/wolverhampton","708251","Total Gas & Power Limited","149912295C","-26.43","Electricity","190367066","23/08/2017","Corporate Asset Management","Central Utilities to Recharge","R2100"
"Wolverhampton City Council","http://opendatacommunities.org/id/metropolitan-district-council/wolverhampton","708251","Total Gas & Power Limited","152863562","46.96","Electricity","190366838","23/08/2017","Schools","Bilston Church of England Primary School","R2100"
"Wolverhampton City Council","http://opendatacommunities.org/id/metropolitan-district-council/wolverhampton","708251","Total Gas & Power Limited","152884870","3,228.93","Electricity","190366971","23/08/2017","Corporate Asset Management","Central Utilities to Recharge","R2100"
"Wolverhampton City Council","http://opendatacommunities.org/id/metropolitan-district-council/wolverhampton","708251","Total Gas & Power Limited","152874089","256.27","Electricity","190366885","23/08/2017","Corporate Asset Management","Central Utilities to Recharge","R2100"
"Wolverhampton City Council","http://opendatacommunities.org/id/metropolitan-district-council/wolverhampton","708251","Total Gas & Power Limited","152935447","248.92","Electricity","190367028","23/08/2017","Corporate Asset Management","Central Utilities to Recharge","R2100"
"Wolverhampton City Council","http://opendatacommunities.org/id/metropolitan-district-council/wolverhampton","708251","Total Gas & Power Limited","152935414","2,271.44","Electricity","190367025","23/08/2017","Schools","Penn Hall Special School","R2100"
"Wolverhampton City Council","http://opendatacommunities.org/id/metropolitan-district-council/wolverhampton","708251","Total Gas & Power Limited","152934677","217.73","Electricity","190367004","23/08/2017","Corporate Asset Management","Central Utilities to Recharge","R2100"
"Wolverhampton City Council","http://opendatacommunities.org/id/metropolitan-district-council/wolverhampton","708251","Total Gas & Power Limited","152935359","1,196.03","Electricity","190367019","23/08/2017","Schools","Trinity Church of England Primary School","R2100"
"Wolverhampton City Council","http://opendatacommunities.org/id/metropolitan-district-council/wolverhampton","708251","Total Gas & Power Limited","152884792","3,086.02","Electricity","190366964","23/08/2017","Corporate Asset Management","Central Utilities to Recharge","R2100"
"Wolverhampton City Council","http://opendatacommunities.org/id/metropolitan-district-council/wolverhampton","708251","Total Gas & Power Limited","152886079","307.64","Electricity","190367001","23/08/2017","Schools","Westacre Infant School","R2100"
"Wolverhampton City Council","http://opendatacommunities.org/id/metropolitan-district-council/wolverhampton","708251","Total Gas & Power Limited","151462240","2.64","Electricity","190367057","23/08/2017","Corporate Asset Management","Central Utilities to Recharge","R2100"
"Wolverhampton City Council","http://opendatacommunities.org/id/metropolitan-district-council/wolverhampton","708251","Total Gas & Power Limited","152864079","364.16","Electricity","190366845","23/08/2017","Schools","Bilston Nursery","R2100"
"Wolverhampton City Council","http://opendatacommunities.org/id/metropolitan-district-council/wolverhampton","708251","Total Gas & Power Limited","152857237","42.57","Electricity","190366796","23/08/2017","Corporate Asset Management","Central Utilities to Recharge","R2100"
"Wolverhampton City Council","http://opendatacommunities.org/id/metropolitan-district-council/wolverhampton","708251","Total Gas & Power Limited","152877950","379.69","Electricity","190366914","23/08/2017","Corporate Asset Management","Central Utilities to Recharge","R2100"
"Wolverhampton City Council","http://opendatacommunities.org/id/metropolitan-district-council/wolverhampton","708251","Total Gas & Power Limited","152863309","204.99","Electricity","190366831","23/08/2017","Corporate Asset Management","Central Utilities to Recharge","R2100"
"Wolverhampton City Council","http://opendatacommunities.org/id/metropolitan-district-council/wolverhampton","708251","Total Gas & Power Limited","152935106","349.69","Electricity","190367011","23/08/2017","Corporate Asset Management","Central Utilities to Recharge","R2100"
"Wolverhampton City Council","http://opendatacommunities.org/id/metropolitan-district-council/wolverhampton","708251","Total Gas & Power Limited","152863474","436.99","Electricity","190366836","23/08/2017","Schools","Woodthorne Primary School","R2100"
"Wolverhampton City Council","http://opendatacommunities.org/id/metropolitan-district-council/wolverhampton","708251","Total Gas & Power Limited","152857391","40.72","Electricity","190366798","23/08/2017","Corporate Asset Management","Central Utilities to Recharge","R2100"
"Wolverhampton City Council","http://opendatacommunities.org/id/metropolitan-district-council/wolverhampton","708251","Total Gas & Power Limited","152857270","58.82","Electricity","190366797","23/08/2017","Corporate Asset Management","Central Utilities to Recharge","R2100"
"Wolverhampton City Council","http://opendatacommunities.org/id/metropolitan-district-council/wolverhampton","708251","Total Gas & Power Limited","152885034","113.03","Electricity","190366980","23/08/2017","Corporate Asset Management","Central Utilities to Recharge","R2100"
"Wolverhampton City Council","http://opendatacommunities.org/id/metropolitan-district-council/wolverhampton","708251","Total Gas & Power Limited","152935469","1,093.20","Electricity","190367030","23/08/2017","Schools","St Luke�s Church of England Aided Primary School","R2100"
"Wolverhampton City Council","http://opendatacommunities.org/id/metropolitan-district-council/wolverhampton","708251","Total Gas & Power Limited","152877004","30.66","Electricity","190366899","23/08/2017","Facilities Management","Management of Vacant Properties","R2100"
"Wolverhampton City Council","http://opendatacommunities.org/id/metropolitan-district-council/wolverhampton","708251","Total Gas & Power Limited","152857864","156.65","Electricity","190366807","23/08/2017","Corporate Asset Management","Central Utilities to Recharge","R2100"
"Wolverhampton City Council","http://opendatacommunities.org/id/metropolitan-district-council/wolverhampton","708251","Total Gas & Power Limited","152885617","36.47","Electricity","190366992","23/08/2017","Corporate Asset Management","Central Utilities to Recharge","R2100"
"Wolverhampton City Council","http://opendatacommunities.org/id/metropolitan-district-council/wolverhampton","708251","Total Gas & Power Limited","152858073","38.75","Electricity","190366813","23/08/2017","Facilities Management","Management of Vacant Properties","R2100"
"Wolverhampton City Council","http://opendatacommunities.org/id/metropolitan-district-council/wolverhampton","708251","Total Gas & Power Limited","152885595","119.60","Electricity","190366991","23/08/2017","Corporate Asset Management","Central Utilities to Recharge","R2100"
"Wolverhampton City Council","http://opendatacommunities.org/id/metropolitan-district-council/wolverhampton","708251","Total Gas & Power Limited","152862968","98.20","Electricity","190366821","23/08/2017","Corporate Asset Management","Central Utilities to Recharge","R2100"
"Wolverhampton City Council","http://opendatacommunities.org/id/metropolitan-district-council/wolverhampton","708251","Total Gas & Power Limited","152884660","3,402.81","Electricity","190366954","23/08/2017","Corporate Asset Management","Central Utilities to Recharge","R2100"
"Wolverhampton City Council","http://opendatacommunities.org/id/metropolitan-district-council/wolverhampton","708251","Total Gas & Power Limited","152935909","68.67","Electricity","190367052","23/08/2017","Corporate Asset Management","Central Utilities to Recharge","R2100"
"Wolverhampton City Council","http://opendatacommunities.org/id/metropolitan-district-council/wolverhampton","708251","Total Gas & Power Limited","152884649","8,438.69","Electricity","190366952","23/08/2017","Corporate Asset Management","Central Utilities to Recharge","R2100"
"Wolverhampton City Council","http://opendatacommunities.org/id/metropolitan-district-council/wolverhampton","708251","Total Gas & Power Limited","152862980","14.78","Electricity","190366822","23/08/2017","Corporate Asset Management","Central Utilities to Recharge","R2100"
"Wolverhampton City Council","http://opendatacommunities.org/id/metropolitan-district-council/wolverhampton","708251","Total Gas & Power Limited","152935800","1,139.24","Electricity","190367048","23/08/2017","Schools","Bantock Primary School","R2100"
"Wolverhampton City Council","http://opendatacommunities.org/id/metropolitan-district-council/wolverhampton","708251","Total Gas & Power Limited","152863155","196.08","Electricity","190366825","23/08/2017","Corporate Asset Management","Central Utilities to Recharge","R2100"
"Wolverhampton City Council","http://opendatacommunities.org/id/metropolitan-district-council/wolverhampton","708251","Total Gas & Power Limited","152877829","28.26","Electricity","190366913","23/08/2017","Corporate Asset Management","Central Utilities to Recharge","R2100"
"Wolverhampton City Council","http://opendatacommunities.org/id/metropolitan-district-council/wolverhampton","708251","Total Gas & Power Limited","147555996C","-45.52","Electricity","190367068","23/08/2017","Corporate Asset Management","Central Utilities to Recharge","R2100"
"Wolverhampton City Council","http://opendatacommunities.org/id/metropolitan-district-council/wolverhampton","708251","Total Gas & Power Limited","152878533","48.16","Electricity","190366927","23/08/2017","Corporate Asset Management","Central Utilities to Recharge","R2100"
"Wolverhampton City Council","http://opendatacommunities.org/id/metropolitan-district-council/wolverhampton","708251","Total Gas & Power Limited","151346805","25.99","Electricity","190367059","23/08/2017","Facilities Management","Management of Vacant Properties","R2100"
"Wolverhampton City Council","http://opendatacommunities.org/id/metropolitan-district-council/wolverhampton","708251","Total Gas & Power Limited","154323625","125.31","Gas","190365630","18/08/2017","Corporate Asset Management","Central Utilities to Recharge","R2101"
"Wolverhampton City Council","http://opendatacommunities.org/id/metropolitan-district-council/wolverhampton","708251","Total Gas & Power Limited","154323647","109.54","Gas","190365632","18/08/2017","Schools","Villiers Primary School","R2101"
"Wolverhampton City Council","http://opendatacommunities.org/id/metropolitan-district-council/wolverhampton","708251","Total Gas & Power Limited","154068953","128.14","Gas","190365618","18/08/2017","Schools","Wodensfield Primary School","R2101"
"Wolverhampton City Council","http://opendatacommunities.org/id/metropolitan-district-council/wolverhampton","708251","Total Gas & Power Limited","154068832","137.37","Gas","190365606","18/08/2017","Schools","Bantock Primary School","R2101"
"Wolverhampton City Council","http://opendatacommunities.org/id/metropolitan-district-council/wolverhampton","708251","Total Gas & Power Limited","154324560","135.98","Gas","190365724","18/08/2017","Corporate Asset Management","Central Utilities to Recharge","R2101"
"Wolverhampton City Council","http://opendatacommunities.org/id/metropolitan-district-council/wolverhampton","708251","Total Gas & Power Limited","154324571","130.92","Gas","190365725","18/08/2017","Schools","St Alban�s Church of England Primary School","R2101"
"Wolverhampton City Council","http://opendatacommunities.org/id/metropolitan-district-council/wolverhampton","708251","Total Gas & Power Limited","154325231","90.37","Gas","190365787","18/08/2017","Schools","Villiers Primary School","R2101"
"Wolverhampton City Council","http://opendatacommunities.org/id/metropolitan-district-council/wolverhampton","708251","Total Gas & Power Limited","153332272","3,163.66","Gas","190365563","18/08/2017","Corporate Asset Management","Central Utilities to Recharge","R2101"
"Wolverhampton City Council","http://opendatacommunities.org/id/metropolitan-district-council/wolverhampton","708251","Total Gas & Power Limited","154323702","174.66","Gas","190365638","18/08/2017","Corporate Asset Management","Central Utilities to Recharge","R2101"
"Wolverhampton City Council","http://opendatacommunities.org/id/metropolitan-district-council/wolverhampton","708251","Total Gas & Power Limited","154324604","35.08","Gas","190365728","18/08/2017","Facilities Management","Management of Vacant Properties","R2101"
"Wolverhampton City Council","http://opendatacommunities.org/id/metropolitan-district-council/wolverhampton","708251","Total Gas & Power Limited","154325242","167.94","Gas","190365788","18/08/2017","Corporate Asset Management","Central Utilities to Recharge","R2101"
"Wolverhampton City Council","http://opendatacommunities.org/id/metropolitan-district-council/wolverhampton","708251","Total Gas & Power Limited","152873979","510.33","Electricity","190366881","23/08/2017","Schools","Castlecroft Primary School","R2100"
"Wolverhampton City Council","http://opendatacommunities.org/id/metropolitan-district-council/wolverhampton","708251","Total Gas & Power Limited","151629714","3.41","Electricity","190367065","23/08/2017","Facilities Management","Management of Vacant Properties","R2100"
"Wolverhampton City Council","http://opendatacommunities.org/id/metropolitan-district-council/wolverhampton","708251","Total Gas & Power Limited","151005959C","-546.35","Electricity","190367070","23/08/2017","Corporate Asset Management","Central Utilities to Recharge","R2100"
"Wolverhampton City Council","http://opendatacommunities.org/id/metropolitan-district-council/wolverhampton","708251","Total Gas & Power Limited","152864244","484.25","Electricity","190366846","23/08/2017","Schools","Whitgreave Infant School","R2100"
"Wolverhampton City Council","http://opendatacommunities.org/id/metropolitan-district-council/wolverhampton","708251","Total Gas & Power Limited","152873374","20.56","Electricity","190366867","23/08/2017","Corporate Asset Management","Central Utilities to Recharge","R2100"
"Wolverhampton City Council","http://opendatacommunities.org/id/metropolitan-district-council/wolverhampton","708251","Total Gas & Power Limited","152873385","130.69","Electricity","190366868","23/08/2017","Corporate Asset Management","Central Utilities to Recharge","R2100"
"Wolverhampton City Council","http://opendatacommunities.org/id/metropolitan-district-council/wolverhampton","708251","Total Gas & Power Limited","152873451","123.63","Electricity","190366870","23/08/2017","Corporate Asset Management","Central Utilities to Recharge","R2100"
"Wolverhampton City Council","http://opendatacommunities.org/id/metropolitan-district-council/wolverhampton","708251","Total Gas & Power Limited","152878192","247.54","Electricity","190366918","23/08/2017","Corporate Asset Management","Central Utilities to Recharge","R2100"
"Wolverhampton City Council","http://opendatacommunities.org/id/metropolitan-district-council/wolverhampton","708251","Total Gas & Power Limited","152935117","717.77","Electricity","190367012","23/08/2017","Corporate Asset Management","Central Utilities to Recharge","R2100"
"Wolverhampton City Council","http://opendatacommunities.org/id/metropolitan-district-council/wolverhampton","708251","Total Gas & Power Limited","152935139","85.11","Electricity","190367014","23/08/2017","Schools","Dovecotes Primary School","R2100"
"Wolverhampton City Council","http://opendatacommunities.org/id/metropolitan-district-council/wolverhampton","708251","Total Gas & Power Limited","152935150","18.92","Electricity","190367015","23/08/2017","Corporate Asset Management","Central Utilities to Recharge","R2100"
"Wolverhampton City Council","http://opendatacommunities.org/id/metropolitan-district-council/wolverhampton","708251","Total Gas & Power Limited","152874276","10.61","Electricity","190366890","23/08/2017","Corporate Asset Management","Central Utilities to Recharge","R2100"
"Wolverhampton City Council","http://opendatacommunities.org/id/metropolitan-district-council/wolverhampton","708251","Total Gas & Power Limited","152874287","19.17","Electricity","190366891","23/08/2017","Corporate Asset Management","Central Utilities to Recharge","R2100"
"Wolverhampton City Council","http://opendatacommunities.org/id/metropolitan-district-council/wolverhampton","708251","Total Gas & Power Limited","151459632","994.65","Electricity","190367075","23/08/2017","Schools","St Andrews Church of England Primary School","R2100"
"Wolverhampton City Council","http://opendatacommunities.org/id/metropolitan-district-council/wolverhampton","708251","Total Gas & Power Limited","152874342","190.11","Electricity","190366893","23/08/2017","Corporate Asset Management","Central Utilities to Recharge","R2100"
"Wolverhampton City Council","http://opendatacommunities.org/id/metropolitan-district-council/wolverhampton","708251","Total Gas & Power Limited","152872934","428.20","Electricity","190366856","23/08/2017","Corporate Asset Management","Central Utilities to Recharge","R2100"
"Wolverhampton City Council","http://opendatacommunities.org/id/metropolitan-district-council/wolverhampton","708251","Total Gas & Power Limited","152872857","15.73","Electricity","190366855","23/08/2017","Corporate Asset Management","Central Utilities to Recharge","R2100"
"Wolverhampton City Council","http://opendatacommunities.org/id/metropolitan-district-council/wolverhampton","708251","Total Gas & Power Limited","152879127","49.24","Electricity","190366942","23/08/2017","Schools","Holy Trinity Catholic Primary School","R2100"
"Wolverhampton City Council","http://opendatacommunities.org/id/metropolitan-district-council/wolverhampton","708251","Total Gas & Power Limited","152879105","465.93","Electricity","190366941","23/08/2017","Schools","Goldthorn Park Primary School","R2100"
"Wolverhampton City Council","http://opendatacommunities.org/id/metropolitan-district-council/wolverhampton","708251","Total Gas & Power Limited","152885298","369.34","Electricity","190366983","23/08/2017","Corporate Asset Management","Central Utilities to Recharge","R2100"
"Wolverhampton City Council","http://opendatacommunities.org/id/metropolitan-district-council/wolverhampton","708251","Total Gas & Power Limited","152879061","21.30","Electricity","190366939","23/08/2017","Operation & Maintenance of Existing Network","Rechargeable Works to Capital - Contract Annual Costs","R2100"
"Wolverhampton City Council","http://opendatacommunities.org/id/metropolitan-district-council/wolverhampton","708251","Total Gas & Power Limited","152857721","24.91","Electricity","190366804","23/08/2017","Corporate Asset Management","Central Utilities to Recharge","R2100"
"Wolverhampton City Council","http://opendatacommunities.org/id/metropolitan-district-council/wolverhampton","708251","Total Gas & Power Limited","152885232","212.67","Electricity","190366982","23/08/2017","Corporate Asset Management","Central Utilities to Recharge","R2100"
"Wolverhampton City Council","http://opendatacommunities.org/id/metropolitan-district-council/wolverhampton","708251","Total Gas & Power Limited","152874386","193.16","Electricity","190366895","23/08/2017","Corporate Asset Management","Central Utilities to Recharge","R2100"
"Wolverhampton City Council","http://opendatacommunities.org/id/metropolitan-district-council/wolverhampton","708251","Total Gas & Power Limited","152876993","46.02","Electricity","190366898","23/08/2017","Operation & Maintenance of Existing Network","Rechargeable Works to Capital - Contract Annual Costs","R2100"
"Wolverhampton City Council","http://opendatacommunities.org/id/metropolitan-district-council/wolverhampton","708251","Total Gas & Power Limited","152935470","520.52","Electricity","190367031","23/08/2017","Corporate Asset Management","Central Utilities to Recharge","R2100"
"Wolverhampton City Council","http://opendatacommunities.org/id/metropolitan-district-council/wolverhampton","708251","Total Gas & Power Limited","152935491","1,269.41","Electricity","190367032","23/08/2017","Schools","Stowheath Primary School","R2100"
"Wolverhampton City Council","http://opendatacommunities.org/id/metropolitan-district-council/wolverhampton","708251","Total Gas & Power Limited","152878720","56.93","Electricity","190366932","23/08/2017","Facilities Management","Management of Vacant Properties","R2100"
"Wolverhampton City Council","http://opendatacommunities.org/id/metropolitan-district-council/wolverhampton","708251","Total Gas & Power Limited","152878698","173.78","Electricity","190366931","23/08/2017","Schools","Woodthorne Primary School","R2100"
"Wolverhampton City Council","http://opendatacommunities.org/id/metropolitan-district-council/wolverhampton","708251","Total Gas & Power Limited","152885540","217.34","Electricity","190366990","23/08/2017","Corporate Asset Management","Central Utilities to Recharge","R2100"
"Wolverhampton City Council","http://opendatacommunities.org/id/metropolitan-district-council/wolverhampton","708251","Total Gas & Power Limited","152885496","48.94","Electricity","190366988","23/08/2017","Corporate Asset Management","Central Utilities to Recharge","R2100"
"Wolverhampton City Council","http://opendatacommunities.org/id/metropolitan-district-council/wolverhampton","708251","Total Gas & Power Limited","152935568","17.96","Electricity","190367039","23/08/2017","Corporate Asset Management","Central Utilities to Recharge","R2100"
"Wolverhampton City Council","http://opendatacommunities.org/id/metropolitan-district-council/wolverhampton","708251","Total Gas & Power Limited","152879501","285.26","Electricity","190366949","23/08/2017","Schools","Eastfield Nursery","R2100"
"Wolverhampton City Council","http://opendatacommunities.org/id/metropolitan-district-council/wolverhampton","708251","Total Gas & Power Limited","152879270","164.31","Electricity","190366947","23/08/2017","Corporate Asset Management","Central Utilities to Recharge","R2100"
"Wolverhampton City Council","http://opendatacommunities.org/id/metropolitan-district-council/wolverhampton","708251","Total Gas & Power Limited","152884650","1,492.13","Electricity","190366953","23/08/2017","Corporate Asset Management","Central Utilities to Recharge","R2100"
"Wolverhampton City Council","http://opendatacommunities.org/id/metropolitan-district-council/wolverhampton","708251","Total Gas & Power Limited","152873132","244.75","Electricity","190366861","23/08/2017","Corporate Asset Management","Central Utilities to Recharge","R2100"
"Wolverhampton City Council","http://opendatacommunities.org/id/metropolitan-district-council/wolverhampton","708251","Total Gas & Power Limited","152935788","884.61","Electricity","190367047","23/08/2017","Corporate Asset Management","Central Utilities to Recharge","R2100"
"Wolverhampton City Council","http://opendatacommunities.org/id/metropolitan-district-council/wolverhampton","708251","Total Gas & Power Limited","152878335","74.00","Electricity","190366922","23/08/2017","Corporate Asset Management","Central Utilities to Recharge","R2100"
"Wolverhampton City Council","http://opendatacommunities.org/id/metropolitan-district-council/wolverhampton","708251","Total Gas & Power Limited","152878500","24.04","Electricity","190366926","23/08/2017","Corporate Asset Management","Central Utilities to Recharge","R2100"
"Wolverhampton City Council","http://opendatacommunities.org/id/metropolitan-district-council/wolverhampton","708251","Total Gas & Power Limited","151667664","546.35","Electricity","190367073","23/08/2017","Corporate Asset Management","Central Utilities to Recharge","R2100"
"Wolverhampton City Council","http://opendatacommunities.org/id/metropolitan-district-council/wolverhampton","708251","Total Gas & Power Limited","152935392","1,054.02","Electricity","190367023","23/08/2017","Schools","Wilkinson Primary School","R2100"
"Wolverhampton City Council","http://opendatacommunities.org/id/metropolitan-district-council/wolverhampton","708251","Total Gas & Power Limited","152884902","1,366.68","Electricity","190366973","23/08/2017","Corporate Asset Management","Central Utilities to Recharge","R2100"
"Wolverhampton City Council","http://opendatacommunities.org/id/metropolitan-district-council/wolverhampton","708251","Total Gas & Power Limited","152857160","183.80","Electricity","190366795","23/08/2017","Corporate Asset Management","Central Utilities to Recharge","R2100"
"Wolverhampton City Council","http://opendatacommunities.org/id/metropolitan-district-council/wolverhampton","708251","Total Gas & Power Limited","152878467","664.30","Electricity","190366924","23/08/2017","Schools","St Paul�s Church of England (Aided) School","R2100"
"Wolverhampton City Council","http://opendatacommunities.org/id/metropolitan-district-council/wolverhampton","708251","Total Gas & Power Limited","154324516","167.43","Gas","190365719","18/08/2017","Corporate Asset Management","Central Utilities to Recharge","R2101"
"Wolverhampton City Council","http://opendatacommunities.org/id/metropolitan-district-council/wolverhampton","708251","Total Gas & Power Limited","154068546","148.69","Gas","190365577","18/08/2017","Schools","Springvale Primary School","R2101"
"Wolverhampton City Council","http://opendatacommunities.org/id/metropolitan-district-council/wolverhampton","708251","Total Gas & Power Limited","153301505","31.26","Gas","190365553","18/08/2017","Corporate Asset Management","Central Utilities to Recharge","R2101"
"Wolverhampton City Council","http://opendatacommunities.org/id/metropolitan-district-council/wolverhampton","708251","Total Gas & Power Limited","154068690","146.47","Gas","190365592","18/08/2017","Schools","Westacre Infant School","R2101"
"Wolverhampton City Council","http://opendatacommunities.org/id/metropolitan-district-council/wolverhampton","708251","Total Gas & Power Limited","154324978","118.40","Gas","190365764","18/08/2017","Corporate Asset Management","Central Utilities to Recharge","R2101"
"Wolverhampton City Council","http://opendatacommunities.org/id/metropolitan-district-council/wolverhampton","708251","Total Gas & Power Limited","154324593","32.29","Gas","190365727","18/08/2017","Corporate Asset Management","Central Utilities to Recharge","R2101"
"Wolverhampton City Council","http://opendatacommunities.org/id/metropolitan-district-council/wolverhampton","708251","Total Gas & Power Limited","154324582","37.06","Gas","190365726","18/08/2017","Corporate Asset Management","Central Utilities to Recharge","R2101"
"Wolverhampton City Council","http://opendatacommunities.org/id/metropolitan-district-council/wolverhampton","708251","Total Gas & Power Limited","154324769","183.66","Gas","190365744","18/08/2017","Schools","Penn Hall Special School","R2101"
"Wolverhampton City Council","http://opendatacommunities.org/id/metropolitan-district-council/wolverhampton","708251","Total Gas & Power Limited","154324791","39.16","Gas","190365747","18/08/2017","Corporate Asset Management","Central Utilities to Recharge","R2101"
"Wolverhampton City Council","http://opendatacommunities.org/id/metropolitan-district-council/wolverhampton","708251","Total Gas & Power Limited","154325121","39.16","Gas","190365776","18/08/2017","Corporate Asset Management","Central Utilities to Recharge","R2101"
"Wolverhampton City Council","http://opendatacommunities.org/id/metropolitan-district-council/wolverhampton","708251","Total Gas & Power Limited","154324880","155.16","Gas","190365755","18/08/2017","Schools","Woodthorne Primary School","R2101"
"Wolverhampton City Council","http://opendatacommunities.org/id/metropolitan-district-council/wolverhampton","708251","Total Gas & Power Limited","145381384C","-3,163.66","Gas","190365554","18/08/2017","Corporate Asset Management","Central Utilities to Recharge","R2101"
"Wolverhampton City Council","http://opendatacommunities.org/id/metropolitan-district-council/wolverhampton","708251","Total Gas & Power Limited","154068480","26.04","Gas","190365571","18/08/2017","Corporate Asset Management","Central Utilities to Recharge","R2101"
"Wolverhampton City Council","http://opendatacommunities.org/id/metropolitan-district-council/wolverhampton","708251","Total Gas & Power Limited","153259474","6.72","Gas","190365552","18/08/2017","Corporate Asset Management","Central Utilities to Recharge","R2101"
"Wolverhampton City Council","http://opendatacommunities.org/id/metropolitan-district-council/wolverhampton","708251","Total Gas & Power Limited","154325011","49.68","Gas","190365766","18/08/2017","Schools","St Michael�s Church of England Primary School","R2101"
"Wolverhampton City Council","http://opendatacommunities.org/id/metropolitan-district-council/wolverhampton","708251","Total Gas & Power Limited","154325330","26.51","Gas","190365797","18/08/2017","Corporate Asset Management","Central Utilities to Recharge","R2101"
"Wolverhampton City Council","http://opendatacommunities.org/id/metropolitan-district-council/wolverhampton","708251","Total Gas & Power Limited","154068755","1,140.02","Gas","190365598","18/08/2017","Corporate Asset Management","Central Utilities to Recharge","R2101"
"Wolverhampton City Council","http://opendatacommunities.org/id/metropolitan-district-council/wolverhampton","708251","Total Gas & Power Limited","154068601","48.82","Gas","190365583","18/08/2017","Corporate Asset Management","Central Utilities to Recharge","R2101"
"Wolverhampton City Council","http://opendatacommunities.org/id/metropolitan-district-council/wolverhampton","708251","Total Gas & Power Limited","154068997","186.89","Gas","190365622","18/08/2017","Corporate Asset Management","Central Utilities to Recharge","R2101"
"Wolverhampton City Council","http://opendatacommunities.org/id/metropolitan-district-council/wolverhampton","708251","Total Gas & Power Limited","154324296","28.83","Gas","190365697","18/08/2017","Facilities Management","Management of Vacant Properties","R2101"
"Wolverhampton City Council","http://opendatacommunities.org/id/metropolitan-district-council/wolverhampton","708251","Total Gas & Power Limited","154324252","50.80","Gas","190365693","18/08/2017","Corporate Asset Management","Central Utilities to Recharge","R2101"
"Wolverhampton City Council","http://opendatacommunities.org/id/metropolitan-district-council/wolverhampton","708251","Total Gas & Power Limited","154323746","26.21","Gas","190365642","18/08/2017","Facilities Management","Management of Vacant Properties","R2101"
"Wolverhampton City Council","http://opendatacommunities.org/id/metropolitan-district-council/wolverhampton","708251","Total Gas & Power Limited","154068634","585.37","Gas","190365586","18/08/2017","Corporate Asset Management","Central Utilities to Recharge","R2101"
"Wolverhampton City Council","http://opendatacommunities.org/id/metropolitan-district-council/wolverhampton","708251","Total Gas & Power Limited","154324494","26.04","Gas","190365717","18/08/2017","Corporate Asset Management","Central Utilities to Recharge","R2101"
"Wolverhampton City Council","http://opendatacommunities.org/id/metropolitan-district-council/wolverhampton","708251","Total Gas & Power Limited","154325198","141.36","Gas","190365783","18/08/2017","Corporate Asset Management","Central Utilities to Recharge","R2101"
"Wolverhampton City Council","http://opendatacommunities.org/id/metropolitan-district-council/wolverhampton","708251","Total Gas & Power Limited","154324219","39.16","Gas","190365689","18/08/2017","Corporate Asset Management","Central Utilities to Recharge","R2101"
"Wolverhampton City Council","http://opendatacommunities.org/id/metropolitan-district-council/wolverhampton","708251","Total Gas & Power Limited","154324230","46.72","Gas","190365691","18/08/2017","Schools","Christ Church (Tettenhall Wood) Infant School","R2101"
"Wolverhampton City Council","http://opendatacommunities.org/id/metropolitan-district-council/wolverhampton","708251","Total Gas & Power Limited","154323823","205.55","Gas","190365650","18/08/2017","Schools","St Patrick�s Catholic Primary School","R2101"
"Wolverhampton City Council","http://opendatacommunities.org/id/metropolitan-district-council/wolverhampton","708251","Total Gas & Power Limited","154324990","44.75","Gas","190365765","18/08/2017","Schools","St Thomas� Church of England Primary School","R2101"
"Wolverhampton City Council","http://opendatacommunities.org/id/metropolitan-district-council/wolverhampton","708251","Total Gas & Power Limited","154324109","39.16","Gas","190365678","18/08/2017","Corporate Asset Management","Central Utilities to Recharge","R2101"
"Wolverhampton City Council","http://opendatacommunities.org/id/metropolitan-district-council/wolverhampton","708251","Total Gas & Power Limited","154324274","45.90","Gas","190365695","18/08/2017","Schools","Merridale Primary School","R2101"
"Wolverhampton City Council","http://opendatacommunities.org/id/metropolitan-district-council/wolverhampton","708251","Total Gas & Power Limited","154325066","39.63","Gas","190365770","18/08/2017","Schools","St Anthony�s Catholic Primary School","R2101"
"Wolverhampton City Council","http://opendatacommunities.org/id/metropolitan-district-council/wolverhampton","708251","Total Gas & Power Limited","154324736","43.35","Gas","190365741","18/08/2017","Schools","Penn Hall Special School","R2101"
"Wolverhampton City Council","http://opendatacommunities.org/id/metropolitan-district-council/wolverhampton","708251","Total Gas & Power Limited","154325143","41.49","Gas","190365778","18/08/2017","Corporate Asset Management","Central Utilities to Recharge","R2101"
"Wolverhampton City Council","http://opendatacommunities.org/id/metropolitan-district-council/wolverhampton","708251","Total Gas & Power Limited","154325176","40.64","Gas","190365781","18/08/2017","Corporate Asset Management","Central Utilities to Recharge","R2101"
"Wolverhampton City Council","http://opendatacommunities.org/id/metropolitan-district-council/wolverhampton","708251","Total Gas & Power Limited","154325286","74.34","Gas","190365792","18/08/2017","Schools","Trinity Church of England Primary School","R2101"
"Wolverhampton City Council","http://opendatacommunities.org/id/metropolitan-district-council/wolverhampton","708251","Total Gas & Power Limited","152488759C","-43.21","Gas","190365567","18/08/2017","Corporate Asset Management","Central Utilities to Recharge","R2101"
"Wolverhampton City Council","http://opendatacommunities.org/id/metropolitan-district-council/wolverhampton","708251","Total Gas & Power Limited","150660152C","-1,502.95","Gas","190365558","18/08/2017","Corporate Asset Management","Central Utilities to Recharge","R2101"
"Wolverhampton City Council","http://opendatacommunities.org/id/metropolitan-district-council/wolverhampton","708251","Total Gas & Power Limited","154068986","244.90","Gas","190365621","18/08/2017","Corporate Asset Management","Central Utilities to Recharge","R2101"
"Wolverhampton City Council","http://opendatacommunities.org/id/metropolitan-district-council/wolverhampton","708251","Total Gas & Power Limited","154068711","285.65","Gas","190365594","18/08/2017","Corporate Asset Management","Central Utilities to Recharge","R2101"
"Wolverhampton City Council","http://opendatacommunities.org/id/metropolitan-district-council/wolverhampton","708251","Total Gas & Power Limited","152497251C","-33.15","Gas","190365550","18/08/2017","Facilities Management","Management of Vacant Properties","R2101"
"Wolverhampton City Council","http://opendatacommunities.org/id/metropolitan-district-council/wolverhampton","708251","Total Gas & Power Limited","154068910","110.47","Gas","190365614","18/08/2017","Schools","St Michael�s Church of England Primary School","R2101"
"Wolverhampton City Council","http://opendatacommunities.org/id/metropolitan-district-council/wolverhampton","708251","Total Gas & Power Limited","154068909","304.93","Gas","190365613","18/08/2017","Schools","Warstones Primary School","R2101"
"Wolverhampton City Council","http://opendatacommunities.org/id/metropolitan-district-council/wolverhampton","708251","Total Gas & Power Limited","154068843","374.08","Gas","190365607","18/08/2017","Corporate Asset Management","Central Utilities to Recharge","R2101"
"Wolverhampton City Council","http://opendatacommunities.org/id/metropolitan-district-council/wolverhampton","708251","Total Gas & Power Limited","154323867","109.54","Gas","190365654","18/08/2017","Corporate Asset Management","Central Utilities to Recharge","R2101"
"Wolverhampton City Council","http://opendatacommunities.org/id/metropolitan-district-council/wolverhampton","708251","Total Gas & Power Limited","154324197","54.94","Gas","190365687","18/08/2017","Schools","Wodensfield Primary School","R2101"
"Wolverhampton City Council","http://opendatacommunities.org/id/metropolitan-district-council/wolverhampton","708251","Total Gas & Power Limited","154325055","122.24","Gas","190365769","18/08/2017","Schools","Fallings Park Primary School","R2101"
"Wolverhampton City Council","http://opendatacommunities.org/id/metropolitan-district-council/wolverhampton","708251","Total Gas & Power Limited","154325132","52.20","Gas","190365777","18/08/2017","Schools","Claregate Primary School","R2101"
"Wolverhampton City Council","http://opendatacommunities.org/id/metropolitan-district-council/wolverhampton","708251","Total Gas & Power Limited","154324890","53.59","Gas","190365756","18/08/2017","Schools","Woodthorne Primary School","R2101"
"Wolverhampton City Council","http://opendatacommunities.org/id/metropolitan-district-council/wolverhampton","708251","Total Gas & Power Limited","154325319","66.56","Gas","190365795","18/08/2017","Corporate Asset Management","Central Utilities to Recharge","R2101"
"Wolverhampton City Council","http://opendatacommunities.org/id/metropolitan-district-council/wolverhampton","708251","Total Gas & Power Limited","154576515","207.44","Gas","190365801","18/08/2017","Corporate Asset Management","Central Utilities to Recharge","R2101"
"Wolverhampton City Council","http://opendatacommunities.org/id/metropolitan-district-council/wolverhampton","708251","Total Gas & Power Limited","154325165","287.53","Gas","190365780","18/08/2017","Corporate Asset Management","Central Utilities to Recharge","R2101"
"Wolverhampton City Council","http://opendatacommunities.org/id/metropolitan-district-council/wolverhampton","708251","Total Gas & Power Limited","154325275","381.25","Gas","190365791","18/08/2017","Schools","Eastfield Nursery","R2101"
"Wolverhampton City Council","http://opendatacommunities.org/id/metropolitan-district-council/wolverhampton","708251","Total Gas & Power Limited","TGP0084-3004744765","11.95","Electricity","190365267","16/08/2017","Housing Revenue Account","Hostels / Outreach","R2100"
"Wolverhampton City Council","http://opendatacommunities.org/id/metropolitan-district-council/wolverhampton","708251","Total Gas & Power Limited","TGP0080-3004745140","71.26","Electricity","190365263","16/08/2017","Housing Revenue Account","Hostels / Outreach","R2100"
"Wolverhampton City Council","http://opendatacommunities.org/id/metropolitan-district-council/wolverhampton","708251","Total Gas & Power Limited","TGP0026-3004745140","180.45","Electricity","190368723","30/08/2017","Housing Revenue Account","Hostels / Outreach","R2100"
"Wolverhampton City Council","http://opendatacommunities.org/id/metropolitan-district-council/wolverhampton","708251","Total Gas & Power Limited","TGP0024-3004744765","162.48","Electricity","190368721","30/08/2017","Housing Revenue Account","Hostels / Outreach","R2100"
"Wolverhampton City Council","http://opendatacommunities.org/id/metropolitan-district-council/wolverhampton","708251","Total Gas & Power Limited","154323933","144.75","Gas","190365661","18/08/2017","Corporate Asset Management","Central Utilities to Recharge","R2101"
"Wolverhampton City Council","http://opendatacommunities.org/id/metropolitan-district-council/wolverhampton","708251","Total Gas & Power Limited","154324263","32.09","Gas","190365694","18/08/2017","Corporate Asset Management","Central Utilities to Recharge","R2101"
"Wolverhampton City Council","http://opendatacommunities.org/id/metropolitan-district-council/wolverhampton","708251","Total Gas & Power Limited","154323812","158.51","Gas","190365649","18/08/2017","Corporate Asset Management","Central Utilities to Recharge","R2101"
"Wolverhampton City Council","http://opendatacommunities.org/id/metropolitan-district-council/wolverhampton","708251","Total Gas & Power Limited","154323922","120.84","Gas","190365660","18/08/2017","Corporate Asset Management","Central Utilities to Recharge","R2101"
"Wolverhampton City Council","http://opendatacommunities.org/id/metropolitan-district-council/wolverhampton","708251","Total Gas & Power Limited","154324110","152.38","Gas","190365679","18/08/2017","Corporate Asset Management","Central Utilities to Recharge","R2101"
"Wolverhampton City Council","http://opendatacommunities.org/id/metropolitan-district-council/wolverhampton","708251","Total Gas & Power Limited","154325209","39.16","Gas","190365784","18/08/2017","Schools","Bushbury Nursery","R2101"
"Wolverhampton City Council","http://opendatacommunities.org/id/metropolitan-district-council/wolverhampton","708251","Total Gas & Power Limited","154324824","39.16","Gas","190365750","18/08/2017","Corporate Asset Management","Central Utilities to Recharge","R2101"
"Wolverhampton City Council","http://opendatacommunities.org/id/metropolitan-district-council/wolverhampton","708251","Total Gas & Power Limited","154324021","147.46","Gas","190365670","18/08/2017","Corporate Asset Management","Central Utilities to Recharge","R2101"
"Wolverhampton City Council","http://opendatacommunities.org/id/metropolitan-district-council/wolverhampton","708251","Total Gas & Power Limited","154324087","145.17","Gas","190365676","18/08/2017","Schools","Whitgreave Infant School","R2101"
"Wolverhampton City Council","http://opendatacommunities.org/id/metropolitan-district-council/wolverhampton","708251","Total Gas & Power Limited","154324659","33.44","Gas","190365733","18/08/2017","Schools","Wilkinson Primary School","R2101"
"Wolverhampton City Council","http://opendatacommunities.org/id/metropolitan-district-council/wolverhampton","708251","Total Gas & Power Limited","154068580","198.13","Gas","190365581","18/08/2017","Schools","St Paul�s Church of England (Aided) School","R2101"
"Wolverhampton City Council","http://opendatacommunities.org/id/metropolitan-district-council/wolverhampton","708251","Total Gas & Power Limited","154069008","26.46","Gas","190365623","18/08/2017","Corporate Asset Management","Central Utilities to Recharge","R2101"
"Wolverhampton City Council","http://opendatacommunities.org/id/metropolitan-district-council/wolverhampton","708251","Total Gas & Power Limited","154324220","39.16","Gas","190365690","18/08/2017","Schools","Christ Church (Tettenhall Wood) Infant School","R2101"
"Wolverhampton City Council","http://opendatacommunities.org/id/metropolitan-district-council/wolverhampton","708251","Total Gas & Power Limited","154324406","40.34","Gas","190365708","18/08/2017","Corporate Asset Management","Central Utilities to Recharge","R2101"
"Wolverhampton City Council","http://opendatacommunities.org/id/metropolitan-district-council/wolverhampton","708251","Total Gas & Power Limited","154324373","30.23","Gas","190365705","18/08/2017","Corporate Asset Management","Central Utilities to Recharge","R2101"
"Wolverhampton City Council","http://opendatacommunities.org/id/metropolitan-district-council/wolverhampton","708251","Total Gas & Power Limited","154324120","39.16","Gas","190365680","18/08/2017","Corporate Asset Management","Central Utilities to Recharge","R2101"
"Wolverhampton City Council","http://opendatacommunities.org/id/metropolitan-district-council/wolverhampton","708251","Total Gas & Power Limited","154324043","41.02","Gas","190365672","18/08/2017","Corporate Asset Management","Central Utilities to Recharge","R2101"
"Wolverhampton City Council","http://opendatacommunities.org/id/metropolitan-district-council/wolverhampton","708251","Total Gas & Power Limited","154069041","510.63","Gas","190365627","18/08/2017","Facilities Management","Management of Vacant Properties","R2101"
"Wolverhampton City Council","http://opendatacommunities.org/id/metropolitan-district-council/wolverhampton","708251","Total Gas & Power Limited","154068898","795.39","Gas","190365612","18/08/2017","Corporate Asset Management","Central Utilities to Recharge","R2101"
"Wolverhampton City Council","http://opendatacommunities.org/id/metropolitan-district-council/wolverhampton","708251","Total Gas & Power Limited","154324000","429.08","Gas","190365668","18/08/2017","Corporate Asset Management","Central Utilities to Recharge","R2101"
"Wolverhampton City Council","http://opendatacommunities.org/id/metropolitan-district-council/wolverhampton","708251","Total Gas & Power Limited","154324626","26.04","Gas","190365730","18/08/2017","Facilities Management","Management of Vacant Properties","R2101"
"Wolverhampton City Council","http://opendatacommunities.org/id/metropolitan-district-council/wolverhampton","708251","Total Gas & Power Limited","154324208","48.70","Gas","190365688","18/08/2017","Corporate Asset Management","Central Utilities to Recharge","R2101"
"Wolverhampton City Council","http://opendatacommunities.org/id/metropolitan-district-council/wolverhampton","708251","Total Gas & Power Limited","154323966","39.61","Gas","190365664","18/08/2017","Corporate Asset Management","Central Utilities to Recharge","R2101"
"Wolverhampton City Council","http://opendatacommunities.org/id/metropolitan-district-council/wolverhampton","708251","Total Gas & Power Limited","152495964C","-2,294.36","Gas","190365568","18/08/2017","Schools","Colton Hills Community School","R2101"
"Wolverhampton City Council","http://opendatacommunities.org/id/metropolitan-district-council/wolverhampton","708251","Total Gas & Power Limited","154068678","379.90","Gas","190365590","18/08/2017","Schools","Castlecroft Primary School","R2101"
"Wolverhampton City Council","http://opendatacommunities.org/id/metropolitan-district-council/wolverhampton","708251","Total Gas & Power Limited","154068975","110.00","Gas","190365620","18/08/2017","Corporate Asset Management","Central Utilities to Recharge","R2101"
"Wolverhampton City Council","http://opendatacommunities.org/id/metropolitan-district-council/wolverhampton","708251","Total Gas & Power Limited","154068788","337.73","Gas","190365601","18/08/2017","Schools","St Andrews Church of England Primary School","R2101"
"Wolverhampton City Council","http://opendatacommunities.org/id/metropolitan-district-council/wolverhampton","708251","Total Gas & Power Limited","154068656","304.09","Gas","190365588","18/08/2017","Corporate Asset Management","Central Utilities to Recharge","R2101"
"Wolverhampton City Council","http://opendatacommunities.org/id/metropolitan-district-council/wolverhampton","708251","Total Gas & Power Limited","154068491","26.04","Gas","190365572","18/08/2017","Corporate Asset Management","Central Utilities to Recharge","R2101"
"Wolverhampton City Council","http://opendatacommunities.org/id/metropolitan-district-council/wolverhampton","708251","Total Gas & Power Limited","153335935","577.44","Gas","190365564","18/08/2017","Corporate Asset Management","Central Utilities to Recharge","R2101"
"Wolverhampton City Council","http://opendatacommunities.org/id/metropolitan-district-council/wolverhampton","708251","Total Gas & Power Limited","150857063C","-40.48","Gas","190365549","18/08/2017","Facilities Management","Management of Vacant Properties","R2101"
"Wolverhampton City Council","http://opendatacommunities.org/id/metropolitan-district-council/wolverhampton","708251","Total Gas & Power Limited","149155440C","-46.16","Gas","190365548","18/08/2017","Facilities Management","Management of Vacant Properties","R2101"
"Wolverhampton City Council","http://opendatacommunities.org/id/metropolitan-district-council/wolverhampton","708251","Total Gas & Power Limited","154323614","388.47","Gas","190365629","18/08/2017","Corporate Asset Management","Central Utilities to Recharge","R2101"
